Workbook

Sheet College Worksheet
A1: Preliminary for 2019-21 Project Requests
A2: CAPITAL ANALYSIS MODEL (CAM) GENERATED SPACE
A3: DirectLine inventory data April 2017 | K3: Warning: do not use before ~
A4: COLLEGE: | B4: Seattle Central | K4: College breaks out assignable areas by CAM category for their projects on the Committed Changes tab.
A5: TYPE: | B5: =VLOOKUP(B4,'College Name Lookup'!E1:F36,2,0) -> Community College | K5: College verfies assignaable area by CAM category on the DL Inventory tab.
A7: All FTE * | B7: FALL 2014 | C7: FALL 2024 | D7: Growth | E7: Percent | F7: FTE/Year
A8: Academic | B8: =VLOOKUP(CONCATENATE($B$4," ",$A8),'FTE Lookup'!$B$11:$L$118,3,0) -> 3123.796741 | C8: =VLOOKUP(CONCATENATE($B$4," ",$A8),'FTE Lookup'!$B$11:$L$118,6,0) -> 3326 | D8: =C8-B8 -> 202.203259 | E8: =IF(B8=0,0,(C8/B8)-1) -> 0.06472996669 | F8: =D8/10 -> 20.2203259
A9: Vocational | B9: =VLOOKUP(CONCATENATE($B$4," ",$A9),'FTE Lookup'!$B$11:$L$118,3,0) -> 1500.224835 | C9: =VLOOKUP(CONCATENATE($B$4," ",$A9),'FTE Lookup'!$B$11:$L$118,6,0) -> 1597 | D9: =C9-B9 -> 96.775165 | E9: =IF(B9=0,0,(C9/B9)-1) -> 0.0645071077 | F9: =D9/10 -> 9.6775165
A10: Basic Skills/Dev Ed | B10: =VLOOKUP(CONCATENATE($B$4," ",$A10),'FTE Lookup'!$B$11:$L$118,3,0) -> 1450.291256 | C10: =VLOOKUP(CONCATENATE($B$4," ",$A10),'FTE Lookup'!$B$11:$L$118,6,0) -> 1544 | D10: =C10-B10 -> 93.708744 | E10: =IF(B10=0,0,(C10/B10)-1) -> 0.06461374128 | F10: =D10/10 -> 9.3708744
A11: TOTAL | B11: =SUM(B8:B10) -> 6074.312832 | C11: =SUM(C8:C10) -> 6467 | D11: =C11-B11 -> 392.687168 | E11: =IF(B11=0,0,(C11/B11)-1) -> 0.06464717555 | F11: =D11/10 -> 39.2687168
A13: Type 1 FTE | B13: FALL 2014 | C13: FALL 2024 | D13: Growth | E13: Percent | F13: FTE/Year
A14: Academic | B14: =VLOOKUP(CONCATENATE($B$4," ",$A14),'FTE Lookup'!$B$11:$L$118,4,0) -> 2394.070804 | C14: =VLOOKUP(CONCATENATE($B$4," ",$A14),'FTE Lookup'!$B$11:$L$118,7,0) -> 2549 | D14: =C14-B14 -> 154.929196 | E14: =IF(B14=0,0,(C14/B14)-1) -> 0.06471370677 | F14: =D14/10 -> 15.4929196
A15: Vocational | B15: =VLOOKUP(CONCATENATE($B$4," ",$A15),'FTE Lookup'!$B$11:$L$118,4,0) -> 1128.331863 | C15: =VLOOKUP(CONCATENATE($B$4," ",$A15),'FTE Lookup'!$B$11:$L$118,7,0) -> 1201 | D15: =C15-B15 -> 72.668137 | E15: =IF(B15=0,0,(C15/B15)-1) -> 0.06440315955 | F15: =D15/10 -> 7.2668137
A16: Basic Skills/Dev Ed | B16: =VLOOKUP(CONCATENATE($B$4," ",$A16),'FTE Lookup'!$B$11:$L$118,4,0) -> 983.105322 | C16: =VLOOKUP(CONCATENATE($B$4," ",$A16),'FTE Lookup'!$B$11:$L$118,7,0) -> 1047 | D16: =C16-B16 -> 63.894678 | E16: =IF(B16=0,0,(C16/B16)-1) -> 0.06499270889 | F16: =D16/10 -> 6.3894678
A17: TOTAL | B17: =SUM(B14:B16) -> 4505.507989 | C17: =SUM(C14:C16) -> 4797 | D17: =C17-B17 -> 291.492011 | E17: =IF(B17=0,0,(C17/B17)-1) -> 0.0646968137 | F17: =D17/10 -> 29.1492011
A19: Type 2 FTE | B19: FALL 2014 | C19: FALL 2024 | D19: Growth | E19: Percent | F19: FTE/Year
A20: Academic | B20: =VLOOKUP(CONCATENATE($B$4," ",$A20),'FTE Lookup'!$B$11:$L$118,5,0) -> 2730.003797 | C20: =VLOOKUP(CONCATENATE($B$4," ",$A20),'FTE Lookup'!$B$11:$L$118,8,0) -> 2907 | D20: =C20-B20 -> 176.996203 | E20: =IF(B20=0,0,(C20/B20)-1) -> 0.06483368382 | F20: =D20/10 -> 17.6996203
A21: Vocational | B21: =VLOOKUP(CONCATENATE($B$4," ",$A21),'FTE Lookup'!$B$11:$L$118,5,0) -> 1130.731857 | C21: =VLOOKUP(CONCATENATE($B$4," ",$A21),'FTE Lookup'!$B$11:$L$118,8,0) -> 1204 | D21: =C21-B21 -> 73.268143 | E21: =IF(B21=0,0,(C21/B21)-1) -> 0.06479709804 | F21: =D21/10 -> 7.3268143
A22: Basic Skills/Dev Ed | B22: =VLOOKUP(CONCATENATE($B$4," ",$A22),'FTE Lookup'!$B$11:$L$118,5,0) -> 1060.905236 | C22: =VLOOKUP(CONCATENATE($B$4," ",$A22),'FTE Lookup'!$B$11:$L$118,8,0) -> 1129 | D22: =C22-B22 -> 68.094764 | E22: =IF(B22=0,0,(C22/B22)-1) -> 0.0641855292 | F22: =D22/10 -> 6.8094764
A23: TOTAL | B23: =SUM(B20:B22) -> 4921.64089 | C23: =SUM(C20:C22) -> 5240 | D23: =C23-B23 -> 318.35911 | E23: =IF(B23=0,0,(C23/B23)-1) -> 0.06468556262 | F23: =D23/10 -> 31.835911
A25: * All funding sources, all ages, all intents (excluding community service), all enrollments (excluding DOC)
A26: Type 1 = Day On-Campus (excludes Online)
A27: Type 2 = Day On-Campus + Online
D29: 2016 | E29: COMMITTED | F29: 2026 | G29: 2024 | H29: 2024 | I29: 2024 | J29: 2024 | K29: 2026 | L29: 2019-21 | N29: SHORTAGE AS %
D30: SPACE | E30: CHANGES | F30: SPACE | G30: ACADEMIC | H30: VOCATIONAL | I30: BASIC SKILLS | J30: ONE TIME | K30: CAM | L30: SPACE DEFICITS | N30: OF 2019-21 CAM
A31: TYPE OF SPACE | B31: FAE CODING | C31: FTE TYPE | D31: AVAILABLE | E31: 2016-26 | F31: AVAILABLE | G31: ALLOWANCE | H31: ALLOWANCE | I31: ALLOWANCE | J31: ALLOWANCE | K31: ALLOWANCE | L31: SHORTAGE | M31: OVERAGE | N31: ALLOWANCE
A32: GEN. CLASSROOM | B32: A1 | C32: 1 | D32: =VLOOKUP($B$4,'DL Apr17'!$C$8:$AI$43,2,0) -> 90616 | F32: =SUM(D32:E32) -> 90616 | G32: =('CAM Allowances'!$D$8*MIN($C$14,1000))+('CAM Allowances'!$E$8*($C$14-MIN($C$14,1000))) -> 31607.6 | H32: =('CAM Allowances'!$F$8*MIN($C$15,1000))+('CAM Allowances'!$G$8*($C$15-MIN($C$15,1000))) -> 9007.5 | K32: =SUM(G32:J32) -> 40615.1 | L32: =IF(K32>F32,K32-F32,0) -> 0 | M32: =IF(K32<F32,F32-K32,0) -> 50000.9 | N32: =IF(K32=0,0,L32/K32) -> 0
A33: BASIC SKILLS LABS (open) | B33: A2 | C33: 2 | D33: =VLOOKUP($B$4,'DL Apr17'!$C$8:$AI$43,3,0) -> 8760 | F33: =SUM(D33:E33) -> 8760 | I33: =('CAM Allowances'!$H$9*MIN($C$22,1000))+('CAM Allowances'!$I$9*($C$22-MIN($C$22,1000))) -> 31160.4 | K33: =SUM(G33:J33) -> 31160.4 | L33: 22400.4 | M33: =IF(K33<F33,F33-K33,0) -> 0 | N33: =IF(K33=0,0,L33/K33) -> 0.7188739554
A34: SCIENCE LABS. | B34: B1 | C34: 1 | D34: =VLOOKUP($B$4,'DL Apr17'!$C$8:$AI$43,4,0) -> 13400 | F34: 13400 | G34: =('CAM Allowances'!$D$10*MIN($C$14,1000))+('CAM Allowances'!$E$10*($C$14-MIN($C$14,1000))) -> 15294 | H34: =('CAM Allowances'!$F$10*MIN($C$14,1000))+('CAM Allowances'!$G$10*($C$14-MIN($C$14,1000))) -> 8921.5 | K34: 24215.5 | L34: 10815.5 | M34: 0 | N34: 0.4466354195
A35: COMPUTER LABS. (open) | B35: B2,B4,B5 | C35: 2 | D35: =VLOOKUP($B$4,'DL Apr17'!$C$8:$AI$43,5,0)+VLOOKUP($B$4,'DL Apr17'!$C$8:$AI$43,7,0)+VLOOKUP($B$4,'DL Apr17'!$C$8:$AI$43,8,0) -> 28263 | F35: 28263 | G35: =('CAM Allowances'!$D$11*MIN($C$20,1000))+('CAM Allowances'!$E$11*($C$20-MIN($C$20,1000))) -> 9302.4 | H35: =('CAM Allowances'!$F$11*MIN($C$20,1000))+('CAM Allowances'!$G$11*($C$20-MIN($C$20,1000))) -> 9302.4 | I35: =('CAM Allowances'!$H$11*MIN($C$20,1000))+('CAM Allowances'!$I$11*($C$20-MIN($C$20,1000))) -> 9302.4 | K35: 27907.2 | L35: 0 | M35: 355.8 | N35: 0
A36: ART | B36: C1 | C36: 2 | D36: =VLOOKUP($B$4,'DL Apr17'!$C$8:$AI$43,9,0) -> 31861 | F36: 31861 | J36: =IF($B$5="Community College",6000," ") -> 6000 | K36: 6000 | L36: 0 | M36: 25861 | N36: 0
A37: MUSIC | B37: C2 | C37: 2 | D37: =VLOOKUP($B$4,'DL Apr17'!$C$8:$AI$43,10,0) -> 2071 | F37: 2071 | J37: =IF($B$5="Community College",4000," ") -> 4000 | K37: 4000 | L37: 1929 | M37: 0 | N37: 0.48225
A38: DRAMA | B38: C3 | C38: 2 | D38: =VLOOKUP($B$4,'DL Apr17'!$C$8:$AI$43,11,0) -> 15998 | F38: 15998 | J38: =IF($B$5="Community College",5000," ") -> 5000 | K38: 5000 | L38: 0 | M38: 10998 | N38: 0
A39: VOCATIONAL SPACE | B39: B3,D1,D2 | C39: N/A | F39: 0 | K39: 0 | L39: 0 | M39: 0 | N39: 0
A40: Subtotal Instruction | D40: =SUM(D32:D39) -> 190969 | E40: =SUM(E32:E39) -> 0 | F40: =SUM(F32:F39) -> 190969 | K40: =SUM(K32:K39) -> 138898.2 | L40: =SUM(L32:L39) -> 35144.9 | M40: =SUM(M32:M39) -> 87215.7 | N40: 0.2530263171
A42: AUDITORIUM | B42: C4 | C42: 2 | D42: =VLOOKUP($B$4,'DL Apr17'!$C$8:$AI$43,12,0) -> 1542 | F42: =SUM(D42:E42) -> 1542 | J42: =9000 -> 9000 | K42: =SUM(G42:J42) -> 9000 | L42: =IF(K42>F42,K42-F42,0) -> 7458 | M42: =IF(K42<F42,F42-K42,0) -> 0 | N42: =IF(K42=0,0,L42/K42) -> 0.8286666667
A43: LIBRARY/LRC | B43: E1 | C43: 2 | D43: =VLOOKUP($B$4,'DL Apr17'!$C$8:$AI$43,15,0) -> 43227 | F43: =SUM(D43:E43) -> 43227 | G43: =('CAM Allowances'!$D$16*MIN($C$20,1000))+('CAM Allowances'!$E$16*($C$20-MIN($C$20,1000))) -> 33009.5 | H43: =('CAM Allowances'!$F$16*MIN($C$21,1000))+('CAM Allowances'!$G$16*($C$21-MIN($C$21,1000))) -> 18534 | I43: =('CAM Allowances'!$H$16*MIN($C$22,1000))+('CAM Allowances'!$I$16*($C$22-MIN($C$22,1000))) -> 17896.5 | K43: =SUM(G43:J43) -> 69440 | L43: =IF(K43>F43,K43-F43,0) -> 26213 | M43: =IF(K43<F43,F43-K43,0) -> 0 | N43: =IF(K43=0,0,L43/K43) -> 0.3774913594
A44: PHYS. EDUCATION | B44: H3 | C44: 2 | D44: =VLOOKUP($B$4,'DL Apr17'!$C$8:$AI$43,21,0) -> 33881 | F44: =SUM(D44:E44) -> 33881 | G44: =('CAM Allowances'!$D$15*MIN($C$20,500))+('CAM Allowances'!$E$15*($C$20-MIN($C$20,500))) -> 37070 | K44: =SUM(G44:J44) -> 37070 | L44: =IF(K44>F44,K44-F44,0) -> 3189 | M44: =IF(K44<F44,F44-K44,0) -> 0 | N44: =IF(K44=0,0,L44/K44) -> 0.08602643647
A45: FACULTY OFFICE | B45: F1 | C45: 2 | D45: =VLOOKUP($B$4,'DL Apr17'!$C$8:$AI$43,16,0) -> 51352 | F45: =SUM(D45:E45) -> 51352 | G45: =('CAM Allowances'!$D$17*MIN($C$20,1000))+('CAM Allowances'!$E$17*($C$20-MIN($C$20,1000))) -> 23546.7 | H45: =('CAM Allowances'!$F$17*MIN($C$21,1000))+('CAM Allowances'!$G$17*($C$21-MIN($C$21,1000))) -> 13003.2 | I45: =('CAM Allowances'!$H$17*MIN($C$22,1000))+('CAM Allowances'!$I$17*($C$22-MIN($C$22,1000))) -> 9144.9 | K45: =SUM(G45:J45) -> 45694.8 | L45: =IF(K45>F45,K45-F45,0) -> 0 | M45: =IF(K45<F45,F45-K45,0) -> 5657.2 | N45: =IF(K45=0,0,L45/K45) -> 0
A46: Subtotal Instructional Support | D46: =SUM(D42:D45) -> 130002 | E46: =SUM(E42:E45) -> 0 | F46: =SUM(F42:F45) -> 130002 | K46: =SUM(K42:K45) -> 161204.8 | L46: =SUM(L42:L45) -> 36860 | M46: =SUM(M42:M45) -> 5657.2 | N46: =IF(K46=0,0,L46/K46) -> 0.2286532411
A48: Total Instructional Space | D48: =D46+D40 -> 320971 | E48: =E46+E40 -> 0 | F48: 320971 | K48: 300103 | L48: 72004.9 | M48: 92872.9 | N48: =IF(K48=0,0,L48/K48) -> 0.239933956
A50: ADMIN./STU.SERV. | B50: G1,G2 | C50: 2 | D50: =VLOOKUP($B$4,'DL Apr17'!$C$8:$AI$43,17,0)+VLOOKUP($B$4,'DL Apr17'!$C$8:$AI$43,18,0) -> 92905 | F50: =SUM(D50:E50) -> 92905 | G50: =('CAM Allowances'!$D$18*MIN($C$20,1000))+('CAM Allowances'!$E$18*($C$20-MIN($C$20,1000))) -> 18762.91 | H50: =('CAM Allowances'!$F$18*MIN($C$21,1000))+('CAM Allowances'!$G$18*($C$21-MIN($C$21,1000))) -> 10026.52 | I50: =('CAM Allowances'!$H$18*MIN($C$22,1000))+('CAM Allowances'!$I$18*($C$22-MIN($C$22,1000))) -> 9641.77 | K50: =SUM(G50:J50) -> 38431.2 | L50: =IF(K50>F50,K50-F50,0) -> 0 | M50: =IF(K50<F50,F50-K50,0) -> 54473.8 | N50: =IF(K50=0,0,L50/K50) -> 0
A51: STU.CTR.& RELATED | B51: H1,H2 | C51: 2 | D51: =VLOOKUP($B$4,'DL Apr17'!$C$8:$AI$43,19,0)+VLOOKUP($B$4,'DL Apr17'!$C$8:$AI$43,20,0) -> 47557 | F51: =SUM(D51:E51) -> 47557 | G51: =('CAM Allowances'!$D$19*MIN($C$20,1000))+('CAM Allowances'!$E$19*($C$20-MIN($C$20,1000))) -> 28388.79 | H51: =('CAM Allowances'!$F$19*MIN($C$21,1000))+('CAM Allowances'!$G$19*($C$21-MIN($C$21,1000))) -> 14815.88 | I51: =('CAM Allowances'!$H$19*MIN($C$22,1000))+('CAM Allowances'!$I$19*($C$22-MIN($C$22,1000))) -> 14218.13 | K51: =SUM(G51:J51) -> 57422.8 | L51: =IF(K51>F51,K51-F51,0) -> 9865.8 | M51: =IF(K51<F51,F51-K51,0) -> 0 | N51: 0.1718098038
A52: C.STORES/MAINT. | B52: I1 | C52: 2 | D52: =VLOOKUP($B$4,'DL Apr17'!$C$8:$AI$43,23,0) -> 48181 | F52: =SUM(D52:E52) -> 48181 | G52: =('CAM Allowances'!$D$21*MIN($C$20,1000))+('CAM Allowances'!$E$21*($C$20-MIN($C$20,1000))) -> 14628 | H52: =('CAM Allowances'!$F$21*MIN($C$21,1000))+('CAM Allowances'!$G$21*($C$21-MIN($C$21,1000))) -> 4816 | I52: =('CAM Allowances'!$H$21*MIN($C$22,1000))+('CAM Allowances'!$I$21*($C$22-MIN($C$22,1000))) -> 7516 | K52: =SUM(G52:J52) -> 26960 | L52: =IF(K52>F52,K52-F52,0) -> 0 | M52: =IF(K52<F52,F52-K52,0) -> 21221 | N52: 0
A53: CHILD CARE | B53: H4 | C53: 2 | D53: =VLOOKUP($B$4,'DL Apr17'!$C$8:$AI$43,22,0) -> 4692 | F53: =SUM(D53:E53) -> 4692 | G53: =('CAM Allowances'!$D$20*MIN($C$20,1000))+('CAM Allowances'!$E$20*($C$20-MIN($C$20,1000))) -> 9883.8 | H53: =('CAM Allowances'!$F$20*MIN($C$21,1000))+('CAM Allowances'!$G$20*($C$21-MIN($C$21,1000))) -> 4093.6 | I53: =('CAM Allowances'!$H$20*MIN($C$22,1000))+('CAM Allowances'!$I$20*($C$22-MIN($C$22,1000))) -> 3838.6 | K53: =SUM(G53:J53) -> 17816 | L53: =IF(K53>F53,K53-F53,0) -> 13124 | M53: =IF(K53<F53,F53-K53,0) -> 0 | N53: 0.7366412214
A54: MISCELLANEOUS | B54: J,K,L,Z | C54: N/A | F54: =SUM(D54:E54) -> 0 | K54: =SUM(G54:J54) -> 0 | L54: =IF(K54>F54,K54-F54,0) -> 0 | M54: =IF(K54<F54,F54-K54,0) -> 0 | N54: 0
A55: Subtotal Student Service/Other | D55: =SUM(D50:D54) -> 193335 | E55: =SUM(E50:E54) -> 0 | F55: =SUM(F50:F54) -> 193335 | K55: =SUM(K50:K54) -> 140630 | L55: =SUM(L50:L54) -> 22989.8 | M55: =SUM(M50:M54) -> 75694.8 | N55: 0.1634772097
A57: TOTAL CAM SPACE | D57: =D55+D48 -> 514306 | E57: =E55+E48 -> 0 | F57: 514306 | K57: 440733 | L57: 94994.7 | M57: 168567.7 | N57: =IF(K57=0,0,L57/K57) -> 0.2155379788
A59: TOTAL ASSIGNED | D59: =VLOOKUP($B$4,'DL Apr17'!$C$8:$AI$43,33,0) -> 917376
A60: CAM/TOT. ASSIGN. | D60: =SUM(D57/D59) -> 0.5606272673

Sheet Committed Changes
B2: Committed Changes (Colleges need to break out assignable areas in their projects by CAM Category before using this workbook)
B4: Buildings in 2016 Facility Inventory System report that are in current and future pipeline projects, as of April 20, 2017
F6: Gross Square Feet | I6: UFI in 2016 FIS | K6: Name in 2016 FIS | M6: Projected
B7: College | C7: Project Name | D7: Number | E7: Status | F7: Total | G7: Replaced by Project | H7: Renovated in Project | I7: To be Replaced | J7: To be Renovated | K7: To be Replaced | L7: To be Renovated | M7: Occupancy Date
B8: Bates | C8: Mohler Communications Technology Center | D8: 20082703 | E8: Construction funded in 2013-15 | F8: 53009 | M8: 2015-04-01
B9: Bates | C9: Medical Mile Health Science Center | D9: 30000989 | E9: Design resquested for 2017-19 | F9: 70000 | G9: 64859 | I9: A08982 | K9: WEST ANNEX - BLDG. B | M9: 2021-07-01
B10: Bellevue | C10: Bellevue - Helath Science Bldg | D10: 20082702 | E10: Construction funded in 2013-15 | F10: 70646 | M10: 2015-01-01
B11: Big Bend | C11: Professional-Technical Education Center | D11: 30000981 | E11: Design funded in 2015-17 | F11: 76140 | G11: 76549 | I11: A00116, A06829, A06920, A07007, A07326 | K11: MAINTENANCE MECHANICS PRO, AG.EDUCATION&ENGINEERING, AUTO MECHANICS, AIRFRAME & POWERPLANT, WELDING LAB | M11: 2019-06-01
B12: Cascadia | C12: Center for Science and Technology | D12: 30001453 | E12: Design resquested for 2017-19 | F12: 66100 | M12: 2021-06-01
B13: Centralia | C13: Student Services | D13: 30000123 | E13: Construction funded in 2015-17 | F13: 70000 | G13: 46432 | I13: A01114, A06567 | K13: STUDENT CENTER, KEMP HALL | M13: 2017-07-01
B14: Clark | C14: Health and Advanced Technologies Building | D14: 20082705 | E14: Construction funded in 2013-15 | F14: 70000 | M14: 2015-06-01
B15: Clark | C15: North Clark County | D15: 30000135 | E15: Design resquested for 2017-19 | F15: 69000 | M15: 2021-10-01
B16: Clover Park | C16: Center for Advanced Manufacturing Technologies 2 | D16: 30000984 | E16: Design funded in 2015-17 | F16: 62478 | G16: 59331 | I16: A01800 | K16: AUXILIARY SERVICES | M16: 2018-11-01
B17: Columbia Basin | C17: Social Science Center | D17: 20082704 | E17: Construction funded in 2015-17 | F17: 51335 | M17: 2016-08-01
B18: Edmonds | C18: Science Engineering Technology Bldg | D18: 30000137 | E18: Design funded in 2015-17 | F18: 69912 | M18: 2018-03-01
B19: Everett | C19: Learning Resource Center | D19: 30000136 | E19: Design resquested for 2017-19 | F19: 69630 | M19: 2021-02-01
B20: Grays Harbor | C20: Science and Math Building | D20: 20081226 | E20: Construction funded in 2013-15 | F20: 70325 | G20: 14765 | I20: A04995 | K20: LIFSCI | M20: 2015-08-01
B21: Green River | C21: Trades and Industry Building | D21: 20081222 | E21: Construction funded in 2013-15 | F21: 64088 | G21: 35290 | H21: 5718 | I21: A03713, A05806, A06549, A06705 | J21: A06324 | K21: TRADES & INDUSTRY "E", TRADES & INDUSTRY "A", TRADES & INDUSTRY "C", TRADES & INDUSTRY "B" | L21: TRADES & INDUSTRY "D" | M21: 2015-06-01
B22: Highline | C22: Health and Life Sciences | D22: 30000983 | E22: Design funded in 2015-17 | F22: 46068 | G22: 8119 | H22: 30920 | I22: A05054, A08640 | J22: A00349 | K22: FACULTY A BLDG, FACULTY B BLDG | L22: MULTIPURPOSEB | M22: 2018-09-01
B23: North Seattle | C23: Library Building Renovation | D23: 30001451 | E23: Design resquested for 2017-19 | F23: 58177 | H23: 58177 | J23: A09018 | L23: LIBRARY BUILDING | M23: 2021-01-01
B24: Olympic | C24: Shop Building Renovation | D24: 30000986 | E24: Design resquested for 2017-19 | F24: 21655 | H24: 18510 | J24: A08453 | L24: SHOP(INDTT/RSCON/WELD) | M24: 2020-10-01
B25: Olympic | C25: College Instruction Center | D25: 30000122 | E25: Construction funded in 2015-17 | F25: 74040 | G25: 37320 | I25: A02252, A04304, A09092, A10279 | L25: THEATRE, MUSIC, ART A, ART B | M25: 2017-06-01
B26: Peninsula | C26: Allied Health and Early Childhood Dev Center | D26: 30000126 | E26: Construction funded in 2015-17 | F26: 42311 | G26: 13266 | I26: A01762 | L26: ELECTRONICS/JOURNALISM | M26: 2016-12-01
B27: Pierce Fort Steilacoom | C27: Cascade Building Renovation - Phase 3 | D27: 30000987 | E27: Design resquested for 2017-19 | F27: 56600 | H27: 38126 | J27: A08348 | L27: CASCADE BLDG | M27: 2020-12-01
B28: Renton | C28: Automotive Complex Renovation | D28: 30000134 | E28: Construction funded in 2015-17 | F28: 67095 | H28: 58595 | J28: A09325 | L28: PAUL GRECO BUILDING | M28: 2017-05-01
B29: Seattle Central | C29: Seattle Maritime Academy | D29: 30000120 | E29: Construction funded in 2013-15 | F29: 28700 | G29: 13768 | H29: 6000 | I29: A02929 | J29: A02017 | K29: MARINE TECH MECHANICAL BD | L29: MARINE TECH | M29: 2015-01-01
B30: Seattle South | C30: Cascade Court | D30: 30000128 | E30: Construction funded in 2015-17 | F30: 59000 | G30: 22928 | I30: A02510 | K30: CASCADE COURT | M30: 2017-01-01
B31: Shoreline | C31: Allied Health, Science & Manufacturing | D31: 30000990 | E31: Design resquested for 2017-19 | F31: 69595 | G31: 64615 | I31: A04825, A06611, A06410, A09157, A01606 | K31: BIOSUP, VOCTEC, BIOLAB, SCILAB, SCIOFF | M31: 2020-12-01
B32: South Seattle | C32: Automotive Technology | D32: 30000988 | E32: Design resquested for 2017-19 | F32: 45590 | H32: 34120 | I32: A02065 | K32: AUTOMOTIVE TECHNOLOGY | M32: 2021-12-01
B33: Spokane | C33: Main Building South Wing Renovation 2 | D33: 30000982 | E33: Design funded in 2015-17 | F33: 57818 | H33: 50849 | J33: A08547 | L33: MAIN | M33: 2019-03-01
B34: Spokane Falls | C34: Photography and Fine Arts | D34: 30000124 | E34: Design resquested for 2017-19 | F34: 57693 | G34: 35274 | I34: A09540, A06505 | K34: PHOTOL, FINE ARTS | M34: 2021-05-01
B35: Walla Walla | C35: Science & Technology Building Replacement | D35: 30001452 | E35: Design resquested for 2017-19 | F35: 16044 | G35: 16044 | I35: A05789, A09884, A05356 | K35: CHINA PAVILION, GREENHOUSE, WOMEN'S CENTER | M35: 2021-01-01
B36: Wenatchee | C36: Wells Hall Replacement | D36: 30000985 | E36: Design funded in 2015-17 | F36: 69985 | G36: 28154 | I36: A04977 | K36: WELLS | M36: 2021-01-01
B37: Whatcom | C37: Learning Commons | D37: 30000138 | E37: Design funded in 2013-15 | F37: 65328 | M37: 2019-03-01
B38: Yakima Valley | C38: Palmer Martin Building | D38: 30000121 | E38: Construction funded in 2013-15 | F38: 43988 | G38: 25272 | I38: A04739, A06498 | K38: SUNDQUIST HALL, PALMER HALL | M38: 2015-06-01

Sheet DL Apr17
C1: 1 | D1: 2 | E1: 3 | F1: 4 | G1: 5 | H1: 6 | I1: 7 | J1: 8 | K1: 9 | L1: 10 | M1: 11 | N1: 12 | O1: 13 | P1: 14 | Q1: 15 | R1: 16 | S1: 17 | T1: 18 | U1: 19 | V1: 20 | W1: 21 | X1: 22 | Y1: 23 | Z1: 24 | AA1: 25 | AB1: 26 | AC1: 27 | AD1: 28 | AE1: 29 | AF1: 30 | AG1: 31 | AH1: 32 | AI1: 33
B2: Inventory breakdown by room use (Colleges need to verify assignable area by CAM category before using this wookbook)
B3: State Board for Community and Technical Colleges
B4: Owned Net Square Footage by Category Indicator
B5: From DirectLine April 2017
D7: Classroom | F7: Laboratory | K7: Fine Arts | O7: Vocational | Q7: Learning & Study Support | R7: Faculty Work and Related | S7: Institutional Student Service Administration | U7: Student Social and Cultural Development | Y7: Supplies, Facilities, Grounds | Z7: Non-program Support | AF7: Community Relations | AG7: Self Support | AH7: Coding Errors
B8: DISTRICT | C8: COLLEGE | D8: A1 | E8: A2 | F8: B1 | G8: B2 | H8: B3 | I8: B4 | J8: B5 | K8: C1 | L8: C2 | M8: C3 | N8: C4 | O8: D1 | P8: D2 | Q8: E1 | R8: F1 | S8: G1 | T8: G2 | U8: H1 | V8: H2 | W8: H3 | X8: H4 | Y8: I1 | Z8: J1 | AA8: J2 | AB8: J3 | AC8: J4 | AD8: J5 | AE8: J6 | AF8: K1 | AG8: L1 | AH8: Z | AI8: TOTAL
B9: 10 | C9: Peninsula | D9: 30919 | E9: 4867 | F9: 18980 | G9: 12639 | H9: 814 | I9: 1785 | J9: 4396 | K9: 6758 | L9: 4257 | M9: 2992 | N9: 451 | O9: 29843 | Q9: 12024 | R9: 14712 | S9: 15374 | T9: 1333 | U9: 8332 | V9: 84 | W9: 11860 | Y9: 6806 | AB9: 25 | AC9: 37234 | AD9: 2576 | AF9: 1232 | AG9: 1815 | AH9: 90310 | AI9: 322418
B10: 20 | C10: Grays Harbor | D10: 27037 | E10: 659 | F10: 4980 | G10: 1575 | H10: 2833 | I10: 3273 | L10: 2881 | M10: 14409 | N10: 9268 | O10: 55385 | P10: 88 | Q10: 15354 | R10: 12583.5 | S10: 16008.5 | T10: 1227 | U10: 16454 | V10: 1540 | W10: 14559.5 | X10: 2522 | Y10: 15522.25 | AA10: 3530.65 | AB10: 1681.3 | AC10: 14313.84 | AF10: 825 | AH10: 79714 | AI10: 318223.54
B11: 30 | C11: Olympic | D11: 33484 | F11: 14866 | G11: 2689 | H11: 1573 | I11: 14561 | J11: 4127 | O11: 17022 | P11: 2191 | Q11: 26849 | R11: 13888 | S11: 28984 | T11: 2712 | U11: 20791 | W11: 13874 | X11: 4161 | Y11: 11340 | AA11: 260 | AC11: 69041 | AD11: 2440 | AF11: 1064 | AH11: 70103 | AI11: 356020
B12: 40 | C12: Skagit Valley | D12: 49058 | E12: 2684 | F12: 20407 | G12: 3035 | H12: 3542 | I12: 2513 | J12: 7808 | K12: 12248 | L12: 4387 | M12: 5985 | N12: 3689 | O12: 65008 | Q12: 31963 | R12: 19916 | S12: 23383 | T12: 5155 | U12: 33028 | V12: 652 | W12: 57365 | Y12: 2698 | AA12: 1604 | AB12: 294 | AC12: 64786 | AD12: 733 | AF12: 1506 | AH12: 46494 | AI12: 476541
B13: 50 | C13: Everett | D13: 9275 | E13: 8975 | F13: 16730 | G13: 10944 | H13: 2721 | J13: 1677 | K13: 10909 | L13: 4712 | M13: 3026 | O13: 10517 | P13: 1122 | R13: 44650 | S13: 1002 | T13: 141 | W13: 22243 | Y13: 264 | AC13: 181 | AH13: 479078 | AI13: 628167
B14: 62 | C14: Seattle Central | D14: 90616 | E14: 8760 | F14: 13400 | G14: 18238 | H14: 3446 | I14: 8405 | J14: 1620 | K14: 31861 | L14: 2071 | M14: 15998 | N14: 1542 | O14: 86448 | Q14: 43227 | R14: 51352 | S14: 90446 | T14: 2459 | U14: 44175 | V14: 3382 | W14: 33881 | X14: 4692 | Y14: 48181 | Z14: 14287 | AC14: 210301 | AD14: 36538 | AF14: 1031 | AH14: 47022 | AI14: 917376
B15: 63 | C15: Seattle North | D15: 39139 | E15: 916 | F15: 18699 | G15: 912 | H15: 3029 | K15: 10136 | L15: 5068 | M15: 2869 | N15: 120 | O15: 11131 | Q15: 5445 | R15: 14904 | S15: 22325 | T15: 558 | U15: 14217 | V15: 918 | X15: 5441 | Y15: 4481 | AC15: 725 | AD15: 2814 | AF15: 1457 | AH15: 596101 | AI15: 761405
B16: 64 | C16: Seattle South | D16: 5729 | E16: 5939 | F16: 8543 | G16: 19197 | H16: 4877 | J16: 1106 | K16: 6939 | L16: 2793 | O16: 188331 | Q16: 791 | R16: 23160 | S16: 7746 | U16: 2240 | W16: 3019 | AC16: 5477 | AD16: 462 | AH16: 368592 | AI16: 655133
B17: 65 | C17: Seattle Voc Institute | G17: 6729 | H17: 3446 | O17: 9015 | R17: 4078 | AH17: 76200 | AI17: 99468
B18: 70 | C18: Shoreline | L18: 730 | R18: 797 | W18: 600 | AH18: 439074 | AI18: 441201
B19: 80 | C19: Bellevue | D19: 81389 | E19: 17122 | F19: 48645 | G19: 14753 | H19: 7340 | I19: 6279 | J19: 3580 | K19: 17504 | L19: 13770 | M19: 13085 | N19: 2952 | O19: 18410 | P19: 2770 | Q19: 34379 | R19: 46270 | S19: 31689 | T19: 8295 | U19: 33219 | V19: 1336 | W19: 37935 | X19: 19859 | Y19: 33922 | Z19: 1400 | AA19: 7023 | AB19: 17612 | AC19: 97740 | AD19: 4168 | AF19: 1571 | AH19: 241951 | AI19: 865968
B20: 90 | C20: Highline | E20: 3735 | F20: 11387 | G20: 1395 | H20: 2180 | J20: 1720 | K20: 5894 | L20: 4686 | M20: 5943 | O20: 13080 | R20: 10396 | W20: 36947 | AH20: 467528 | AI20: 564891
B21: 100 | C21: Green River | D21: 25096 | E21: 2161 | F21: 34867 | G21: 8481 | H21: 2180 | I21: 5010 | J21: 3600 | K21: 1728 | L21: 3179 | M21: 11388 | N21: 3092 | O21: 80359 | Q21: 25483 | R21: 19330 | S21: 36351 | T21: 5055 | U21: 30043 | V21: 971 | W21: 24595 | X21: 3533 | Y21: 7795 | AA21: 1129 | AB21: 195 | AC21: 106261 | AD21: 4195 | AF21: 337 | AH21: 138746 | AI21: 585160
B22: 111 | C22: Pierce Fort Steilacoom | D22: 40384 | E22: 4772 | F22: 1094 | H22: 1509 | I22: 2417 | J22: 1500 | N22: 8433.02 | O22: 16048 | Q22: 33721 | R22: 13287 | S22: 45913 | T22: 2756 | U22: 21719 | W22: 1600 | Y22: 12926 | AB22: 538 | AC22: 8890 | AF22: 240 | AH22: 2457 | AI22: 220204.02
B23: 112 | C23: Pierce Puyallup | D23: 22349 | E23: 1283 | F23: 6027 | G23: 2990 | H23: 3214 | I23: 951 | O23: 3673 | Q23: 15372 | R23: 5227 | S23: 6570 | T23: 1461 | U23: 12489 | V23: 3058 | Y23: 2574 | AC23: 6063 | AH23: 5804 | AI23: 99105
B24: 121 | C24: Centralia | D24: 1675 | E24: 48 | F24: 1774 | H24: 140 | I24: 42 | K24: 980 | L24: 835 | M24: 1833 | N24: 259 | O24: 1605 | Q24: 120 | R24: 2121 | S24: 3528 | T24: 1224 | U24: 301 | Y24: 84 | AC24: 5462 | AE24: 672 | AH24: 265076 | AI24: 287779
B25: 130 | C25: Lower Columbia | D25: 15091 | E25: 8956 | F25: 22198 | G25: 3616 | H25: 6729 | I25: 3937 | J25: 2512 | K25: 4093 | L25: 3347 | M25: 10438 | O25: 58632 | Q25: 2401 | R25: 16668 | S25: 20768 | T25: 960 | U25: 5031 | V25: 1138 | W25: 19980 | X25: 2921 | Y25: 8962 | AC25: 622 | AD25: 24207 | AF25: 624 | AH25: 123547 | AI25: 367378
B26: 140 | C26: Clark | D26: 70270 | E26: 6462 | F26: 44598 | G26: 14128 | H26: 2433 | I26: 7542 | J26: 1495 | K26: 8444 | L26: 9840 | M26: 3730 | N26: 20492 | O26: 82369 | P26: 1931 | Q26: 30469 | R26: 41465 | S26: 42161 | T26: 1750 | U26: 53555 | V26: 3093 | W26: 28820 | X26: 4819 | Y26: 21183 | Z26: 576 | AA26: 237 | AB26: 1950 | AC26: 165147.02 | AD26: 1520 | AF26: 1908 | AH26: 15294 | AI26: 689919.02
B27: 150 | C27: Wenatchee Valley | D27: 24180 | E27: 1584 | F27: 14031 | H27: 1246 | I27: 1558 | K27: 9830 | L27: 7209 | N27: 1658 | O27: 1979 | Q27: 20669.04 | R27: 7868 | S27: 15406 | T27: 82 | U27: 17283 | V27: 662 | Y27: 6113 | AB27: 402 | AC27: 30828 | AD27: 4130 | AE27: 108 | AF27: 1175 | AI27: 168001.04
B28: 160 | C28: Yakima Valley | D28: 6060 | E28: 12470 | F28: 22037 | G28: 8060 | J28: 10590 | K28: 17922 | L28: 3315 | M28: 3695 | O28: 47425 | P28: 3828 | R28: 28606 | S28: 27407 | T28: 209 | Y28: 2489 | AC28: 14477 | AH28: 370694 | AI28: 581156
B29: 171 | C29: Spokane | D29: 8660 | G29: 999 | I29: 996 | Q29: 959 | S29: 2447 | U29: 1760 | AC29: 21192 | AH29: 1043773 | AI29: 1080786
B30: 172 | C30: Spokane Falls | D30: 6118 | I30: 1170 | L30: 8942 | N30: 6876 | P30: 2581 | Q30: 513 | U30: 1951 | AC30: 30313 | AH30: 763233 | AI30: 821697
B31: 180 | C31: Big Bend | D31: 18447 | E31: 4446 | F31: 11319 | G31: 3910 | H31: 5827 | I31: 1892 | J31: 1972 | K31: 5260 | L31: 4187 | M31: 7298 | N31: 5642 | O31: 188394 | P31: 1214 | Q31: 20981 | R31: 24266 | S31: 11605 | T31: 2828 | U31: 34030 | V31: 4000 | W31: 35375 | Y31: 12660 | AB31: 1688 | AC31: 3092 | AD31: 1320 | AF31: 3426 | AH31: 126243 | AI31: 541322
B32: 190 | C32: Columbia Basin | D32: 20050 | E32: 1453 | F32: 2274 | G32: 1650 | H32: 1448 | I32: 2278 | J32: 300 | K32: 857 | L32: 1478 | M32: 5810 | N32: 382 | O32: 14648 | Q32: 3988 | R32: 15598 | S32: 15852 | T32: 3601 | U32: 3780 | V32: 848 | W32: 3042 | Y32: 7160 | AC32: 185 | AD32: 541 | AF32: 2821 | AH32: 344581 | AI32: 454625
B33: 200 | C33: Walla Walla | E33: 8827 | F33: 7932 | G33: 1845 | H33: 2762 | J33: 2152 | K33: 5455 | L33: 2911 | M33: 5981 | O33: 122759 | R33: 23932 | W33: 33218 | AH33: 215564 | AI33: 433338
B34: 210 | C34: Whatcom | D34: 42803 | E34: 1459 | F34: 15813 | G34: 12081 | I34: 2258 | K34: 5474 | M34: 4173 | N34: 6417 | O34: 7102 | Q34: 16031 | R34: 19954.99 | S34: 12581.01 | T34: 1359 | U34: 18685 | W34: 25364 | X34: 5791 | Y34: 13713 | Z34: 1980 | AC34: 82876.93 | AD34: 317 | AH34: 6546 | AI34: 302778.93
B35: 220 | C35: Tacoma | D35: 54443 | E35: 13154 | F35: 22133 | G35: 1665 | H35: 7643 | I35: 6229.6 | J35: 4375 | K35: 12636 | L35: 3386 | N35: 4182.1 | O35: 25491 | P35: 75 | Q35: 25886.8 | R35: 49605 | S35: 37363.6 | T35: 6179 | U35: 23966.67 | V35: 1543.4 | W35: 23332 | X35: 10548 | Y35: 23846 | AA35: 1209 | AB35: 1955 | AC35: 112504.8 | AD35: 3014 | AF35: 3365 | AH35: 66822.1 | AI35: 550692.07
B36: 230 | C36: Edmonds | D36: 49211 | E36: 18500 | F36: 20574 | G36: 9569 | H36: 4462 | I36: 12185 | J36: 2795 | K36: 12339 | L36: 6326 | M36: 3037 | N36: 4525 | O36: 26916 | P36: 7188 | Q36: 41022.95 | R36: 39512 | S36: 43729 | T36: 5110 | U36: 42479 | V36: 4050 | W36: 27195 | X36: 5796 | Y36: 22268 | AA36: 6635 | AB36: 7125 | AC36: 63178 | AD36: 1921 | AF36: 5797 | AH36: 12825 | AI36: 506269.95
B37: 240 | C37: South Puget Sound | D37: 79393 | E37: 51850 | F37: 6131 | G37: 3989 | I37: 3258 | K37: 5043 | L37: 5319 | M37: 3521 | N37: 18120 | O37: 22951 | Q37: 37396 | R37: 22778 | S37: 18641 | T37: 614 | U37: 8926 | V37: 1495 | W37: 23528 | X37: 12009 | Y37: 5106 | Z37: 2700 | AB37: 472 | AC37: 51453 | AD37: 4124 | AG37: 347 | AH37: 490476 | AI37: 879640
B38: 250 | C38: Bellingham | D38: 23882 | E38: 4936 | F38: 3957 | G38: 10348 | H38: 5034 | I38: 5280 | O38: 161535 | Q38: 1487 | R38: 7644 | S38: 19342 | T38: 1375 | U38: 4546 | Y38: 4643 | AC38: 42658 | AF38: 426 | AH38: 97045 | AI38: 394138
B39: 260 | C39: Lake Washington | D39: 35021 | E39: 717 | F39: 8452 | G39: 15815 | H39: 2166 | I39: 3316 | J39: 2173 | K39: 3401 | N39: 7664 | O39: 145149 | Q39: 18692 | R39: 20689 | S39: 35950 | T39: 4647 | U39: 13747 | V39: 212 | W39: 6729 | Y39: 10401 | AC39: 113468 | AH39: 0 | AI39: 454688
B40: 270 | C40: Renton | D40: 9178 | E40: 10278 | F40: 1591 | G40: 11125 | H40: 26712 | I40: 3289 | N40: 830 | O40: 207644 | Q40: 2164 | R40: 16412 | S40: 17623 | T40: 1213 | U40: 8148 | W40: 3690 | X40: 4127 | Y40: 6231 | AC40: 25044 | AD40: 2627 | AF40: 640 | AH40: 113965 | AI40: 472531
B41: 280 | C41: Bates | D41: 11247 | E41: 9317 | F41: 672 | G41: 11655 | H41: 18069 | I41: 1490 | J41: 1871 | O41: 251096 | Q41: 10128 | R41: 22327 | S41: 31506 | T41: 2183 | U41: 34353 | X41: 3366 | Y41: 17094 | AA41: 273 | AB41: 283 | AC41: 106681 | AD41: 50969 | AF41: 1197 | AH41: 1567 | AI41: 587344
B42: 290 | C42: Clover Park | D42: 11846 | E42: 6009 | F42: 3465 | G42: 15532 | H42: 25406 | I42: 206 | O42: 279833 | Q42: 7332 | R42: 21044 | S42: 16150 | T42: 1307 | U42: 26632 | Y42: 47998 | AC42: 60763 | AD42: 415 | AH42: 165632 | AI42: 689570
B43: 300 | C43: Cascadia | D43: 51544 | E43: 2229 | F43: 21933 | G43: 18610 | K43: 205 | M43: 1067 | N43: 2893 | O43: 2561 | P43: 1255 | Q43: 44798 | R43: 53258 | S43: 28557 | T43: 2190 | U43: 2592 | Y43: 930 | AA43: 2188 | AB43: 175 | AC43: 119345 | AD43: 455 | AE43: 68484 | AG43: 12335 | AH43: 167478 | AI43: 605082
C44: Total | D44: 993594 | E44: 224568 | F44: 449509 | G44: 248174 | H44: 152781 | I44: 102120.6 | J44: 61369 | K44: 195916 | L44: 105629 | M44: 126278 | N44: 109487.12 | O44: 2252359 | P44: 24243 | Q44: 529645.79 | R44: 728298.49 | S44: 726408.11 | T44: 67983 | U44: 538472.67 | V44: 28982.4 | W44: 488751.5 | X44: 89585 | Y44: 357390.25 | Z44: 20943 | AA44: 24088.65 | AB44: 34395.3 | AC44: 1670302.59 | AD44: 149486 | AE44: 69264 | AF44: 30642 | AG44: 14497 | AH44: 7539535.1 | AI44: 18180015.57
C47: Status | D47: include 0, A, AC, Active, IN, INUSE, O, OP, and OPER
C48: ON-OFF-CAMPUS | D48: include 1, 2, and (blank)
C49: OWNR-STAT | D49: include 1, 2, and (blank)

Sheet CAM Allowances
B3: Capital Asset Model, adopted February 7, 2013
B5: Assignable Square Feet per FTE Student
B6: Type of Space | C6: FTE Type | D6: Academic FTE | F6: Vocational FTE | H6: Basic Skills FTE
D7: First 1,000 | E7: Additional | F7: First 1,000 | G7: Additional | H7: First 1,000 | I7: Additional
B8: General Classroom | C8: 1 | D8: 12.4 | E8: 12.4 | F8: 7.5 | G8: 7.5 | H8: N/A | I8: N/A
B9: Basic Skills | C9: 2 | D9: N/A | E9: N/A | F9: N/A | G9: N/A | H9: 27.6 | I9: 27.6
B10: Science Lab | C10: 1 | D10: 6 | E10: 6 | F10: 3.5 | G10: 3.5 | H10: N/A | I10: N/A
B11: Computer Lab (open) | C11: 2 | D11: 3.2 | E11: 3.2 | F11: 3.2 | G11: 3.2 | H11: 3.2 | I11: 3.2
B12: Music | C12: 2 | D12: A one-time allowance of 4,000 asf @ CCs only
B13: Art | C13: 2 | D13: A one-time allowance of 6,000 asf @ CCs only
B14: Drama | C14: 2 | D14: A one-time allowance of 5,000 asf @ CCs only
B15: Physical Education ** | C15: 2 | D15: 26 | E15: 10 | F15: N/A | G15: N/A | H15: N/A | I15: N/A
B16: Library *** | C16: 2 | D16: 16.8 | E16: 8.5 | F16: 16.8 | G16: 8.5 | H16: 16.8 | I16: 8.5
B17: Faculty Office | C17: 2 | D17: 8.1 | E17: 8.1 | F17: 10.8 | G17: 10.8 | H17: 8.1 | I17: 8.1
B18: Admin/Student Services | C18: 2 | D18: 8.98 | E18: 5.13 | F18: 8.98 | G18: 5.13 | H18: 8.98 | I18: 5.13
B19: Student Center & Related | C19: 2 | D19: 13.19 | E19: 7.97 | F19: 13.19 | G19: 7.97 | H19: 13.19 | I19: 7.97
B20: Childcare | C20: 2 | D20: 3.4 | E20: 3.4 | F20: 3.4 | G20: 3.4 | H20: 3.4 | I20: 3.4
B21: Central Stores/Maintenance | C21: 2 | D21: 7 | E21: 4 | F21: 4 | G21: 4 | H21: 7 | I21: 4
B22: Auditorium | C22: 2 | D22: A one-time, total space of 9,000 asf @ CCs and TCs
B24: FTE Type 1: | C24: Day On Campus w/o Online (Category 3N).
B25: FTE Type 2: | C25: Day On Campus plus Online of same intent regardless of time of day.
B27: * Vocational space will be included in the CAM based on a formal analysis of space needs by program and projected enrollment growth.
B28: ** Calculation based on first 500 FTE.

Sheet FTE Lookup
B1: 1 | C1: 2 | D1: 3 | E1: 4 | F1: 5 | G1: 6 | H1: 7 | I1: 8 | J1: 9 | K1: 10 | L1: 11
C3: WA State Board for Community and Technical Colleges
C4: Summary of Fall FTEs Used in the 2019-21 CAM
C5: CAM V01
C6: EXCLUDING Department of Corrections (DOC)
C7: Type 1 = Day On-Campus (excludes Online)
C8: Type 2 = Day On-Campus + Online
B9: Lookup | C9: 010 | D9: Fall 2012 FTEs | G9: Fall 2022 FTE Projections | J9: FTE Growth (Fall)
B10: College | C10: Intent | D10: Total | E10: Type 1 | F10: Type 2 | G10: Total | H10: Type 1 | I10: Type 2 | J10: Total | K10: Type 1 | L10: Type 2
B11: Bates Academic | C11: Academic | D11: 122.199873 | E11: 81.133249 | F11: 122.199873 | G11: 130 | H11: 86 | I11: 130 | J11: 7.800127 | K11: 4.866751 | L11: 7.800127
B12: Bates Basic Skills/Dev Ed | C12: Vocational | D12: 2385.123998 | E12: 1292.911755 | F12: 1500.244885 | G12: 2537 | H12: 1375 | I12: 1596 | J12: 151.876002 | K12: 82.088245 | L12: 95.755115
B13: Bates Vocational | C13: Basic Skills/Dev Ed | D13: 509.726079 | E13: 334.032818 | F13: 345.032807 | G13: 542 | H13: 355 | I13: 367 | J13: 32.273921 | K13: 20.967182 | L13: 21.967193
B14: Bellevue Academic | C14: Academic | D14: 7443.439382 | E14: 5139.308126 | F14: 6850.973255 | G14: 7934 | H14: 5478 | I14: 7302 | J14: 490.560618 | K14: 338.691874 | L14: 451.026745
B15: Bellevue Basic Skills/Dev Ed | C15: Vocational | D15: 2495.204305 | E15: 1155.63209 | F15: 1704.098145 | G15: 2660 | H15: 1232 | I15: 1817 | J15: 164.795695 | K15: 76.36791 | L15: 112.901855
B16: Bellevue Vocational | C16: Basic Skills/Dev Ed | D16: 1352.125568 | E16: 1046.659258 | F16: 1093.392531 | G16: 1441 | H16: 1115 | I16: 1165 | J16: 88.874432 | K16: 68.340742 | L16: 71.607469
B17: Bellingham Academic | C17: Academic | D17: 402.799607 | E17: 219.133124 | F17: 353.466323 | G17: 433 | H17: 236 | I17: 380 | J17: 30.200393 | K17: 16.866876 | L17: 26.533677
B18: Bellingham Basic Skills/Dev Ed | C18: Vocational | D18: 1558.21795 | E18: 1113.091904 | F18: 1255.091683 | G18: 1674 | H18: 1196 | I18: 1348 | J18: 115.78205 | K18: 82.908096 | L18: 92.908317
B19: Bellingham Vocational | C19: Basic Skills/Dev Ed | D19: 287.819669 | E19: 233.40639 | F19: 249.073041 | G19: 309 | H19: 251 | I19: 267 | J19: 21.180331 | K19: 17.59361 | L19: 17.926959
B20: Big Bend Academic | C20: Academic | D20: 1113.36543 | E20: 814.432373 | F20: 1016.365526 | G20: 1292 | H20: 945 | I20: 1179 | J20: 178.63457 | K20: 130.567627 | L20: 162.634474
B21: Big Bend Basic Skills/Dev Ed | C21: Vocational | D21: 542.486061 | E21: 357.819571 | F21: 399.886207 | G21: 630 | H21: 416 | I21: 464 | J21: 87.513939 | K21: 58.180429 | L21: 64.113793
B22: Big Bend Vocational | C22: Basic Skills/Dev Ed | D22: 394.246178 | E22: 259.306329 | F22: 276.046302 | G22: 458 | H22: 301 | I22: 321 | J22: 63.753822 | K22: 41.693671 | L22: 44.953698
B23: Cascadia Academic | C23: Academic | D23: 2285.731148 | E23: 1562.398532 | F23: 1885.398209 | G23: 2481 | H23: 1696 | I23: 2046 | J23: 195.268852 | K23: 133.601468 | L23: 160.601791
B24: Cascadia Basic Skills/Dev Ed | C24: Vocational | D24: 174.466463 | E24: 109.53321 | F24: 137.266503 | G24: 189 | H24: 119 | I24: 149 | J24: 14.533537 | K24: 9.46679 | L24: 11.733497
B25: Cascadia Vocational | C25: Basic Skills/Dev Ed | D25: 524.399457 | E25: 415.866259 | F25: 435.866239 | G25: 569 | H25: 451 | I25: 473 | J25: 44.600543 | K25: 35.133741 | L25: 37.133761
B26: Centralia Academic | C26: Academic | D26: 1139.665209 | E26: 859.465615 | F26: 1064.798761 | G26: 1190 | H26: 897 | I26: 1112 | J26: 50.334791 | K26: 37.534385 | L26: 47.201239
B27: Centralia Basic Skills/Dev Ed | C27: Vocational | D27: 724.439153 | E27: 483.886199 | F27: 553.999442 | G27: 756 | H27: 505 | I27: 578 | J27: 31.560847 | K27: 21.113801 | L27: 24.000558
B28: Centralia Vocational | C28: Basic Skills/Dev Ed | D28: 414.779517 | E28: 306.232996 | F28: 312.899656 | G28: 433 | H28: 320 | I28: 327 | J28: 18.220483 | K28: 13.767004 | L28: 14.100344
B29: Clark Academic | C29: Academic | D29: 4996.540252 | E29: 3385.535461 | F29: 4253.961221 | G29: 5344 | H29: 3621 | I29: 4550 | J29: 347.459748 | K29: 235.464539 | L29: 296.038779
B30: Clark Basic Skills/Dev Ed | C30: Vocational | D30: 1677.438089 | E30: 855.679015 | F30: 1127.212107 | G30: 1794 | H30: 915 | I30: 1206 | J30: 116.561911 | K30: 59.320985 | L30: 78.787893
B31: Clark Vocational | C31: Basic Skills/Dev Ed | D31: 1243.99876 | E31: 824.665778 | F31: 915.865684 | G31: 1330 | H31: 882 | I31: 979 | J31: 86.00124 | K31: 57.334222 | L31: 63.134316
B32: Clover Park Academic | C32: Academic | D32: 439.266277 | E32: 287.33309 | F32: 412.999631 | G32: 463 | H32: 303 | I32: 435 | J32: 23.733723 | K32: 15.66691 | L32: 22.000369
B33: Clover Park Basic Skills/Dev Ed | C33: Vocational | D33: 2563.950151 | E33: 1485.678089 | F33: 1656.104539 | G33: 2705 | H33: 1567 | I33: 1747 | J33: 141.049849 | K33: 81.321911 | L33: 90.895461
B34: Clover Park Vocational | C34: Basic Skills/Dev Ed | D34: 454.333004 | E34: 308.599768 | F34: 332.933077 | G34: 479 | H34: 325 | I34: 351 | J34: 24.666996 | K34: 16.400232 | L34: 18.066923
B35: Columbia Basin Academic | C35: Academic | D35: 3183.515936 | E35: 2351.596973 | F35: 2944.596269 | G35: 3810 | H35: 2814 | I35: 3524 | J35: 626.484064 | K35: 462.403027 | L35: 579.403731
B36: Columbia Basin Basic Skills/Dev Ed | C36: Vocational | D36: 1227.311901 | E36: 377.726154 | F36: 658.059137 | G36: 1469 | H36: 452 | I36: 788 | J36: 241.688099 | K36: 74.273846 | L36: 129.940863
B37: Columbia Basin Vocational | C37: Basic Skills/Dev Ed | D37: 1065.359002 | E37: 571.145927 | F37: 617.812547 | G37: 1275 | H37: 684 | I37: 739 | J37: 209.640998 | K37: 112.854073 | L37: 121.187453
B38: Edmonds Academic | C38: Academic | D38: 3383.363146 | E38: 2270.717634 | F38: 2974.050306 | G38: 3690 | H38: 2477 | I38: 3244 | J38: 306.636854 | K38: 206.282366 | L38: 269.949694
B39: Edmonds Basic Skills/Dev Ed | C39: Vocational | D39: 1751.691149 | E39: 778.945825 | F39: 1179.145393 | G39: 1910 | H39: 849 | I39: 1286 | J39: 158.308851 | K39: 70.054175 | L39: 106.854607
B40: Edmonds Vocational | C40: Basic Skills/Dev Ed | D40: 1304.945212 | E40: 974.745614 | F40: 1000.412255 | G40: 1423 | H40: 1063 | I40: 1091 | J40: 118.054788 | K40: 88.254386 | L40: 90.587745
B41: Everett Academic | C41: Academic | D41: 3598.902693 | E41: 2403.730645 | F41: 3101.19659 | G41: 3923 | H41: 2620 | I41: 3380 | J41: 324.097307 | K41: 216.269355 | L41: 278.80341
B42: Everett Basic Skills/Dev Ed | C42: Vocational | D42: 1699.26502 | E42: 778.312608 | F42: 1166.038895 | G42: 1852 | H42: 848 | I42: 1271 | J42: 152.73498 | K42: 69.687392 | L42: 104.961105
B43: Everett Vocational | C43: Basic Skills/Dev Ed | D43: 1233.298725 | E43: 819.732481 | F43: 866.399101 | G43: 1344 | H43: 893 | I43: 944 | J43: 110.701275 | K43: 73.267519 | L43: 77.600899
B44: Grays Harbor Academic | C44: Academic | D44: 860.812236 | E44: 605.525879 | F44: 848.725634 | G44: 875 | H44: 616 | I44: 863 | J44: 14.187764 | K44: 10.474121 | L44: 14.274366
B45: Grays Harbor Basic Skills/Dev Ed | C45: Vocational | D45: 457.259619 | E45: 321.99313 | F45: 383.859733 | G45: 465 | H45: 327 | I45: 390 | J45: 7.740381 | K45: 5.00687 | L45: 6.140267
B46: Grays Harbor Vocational | C46: Basic Skills/Dev Ed | D46: 427.699511 | E46: 284.659695 | F46: 360.859619 | G46: 435 | H46: 290 | I46: 367 | J46: 7.300489 | K46: 5.340305 | L46: 6.140381
B47: Green River Academic | C47: Academic | D47: 4693.128453 | E47: 3302.063188 | F47: 4065.32909 | G47: 5003 | H47: 3520 | I47: 4334 | J47: 309.871547 | K47: 217.936812 | L47: 268.67091
B48: Green River Basic Skills/Dev Ed | C48: Vocational | D48: 1523.551661 | E48: 722.492528 | F48: 1010.905576 | G48: 1624 | H48: 770 | I48: 1078 | J48: 100.448339 | K48: 47.507472 | L48: 67.094424
B49: Green River Vocational | C49: Basic Skills/Dev Ed | D49: 1824.192381 | E49: 962.466027 | F49: 973.199351 | G49: 1945 | H49: 1026 | I49: 1038 | J49: 120.807619 | K49: 63.533973 | L49: 64.800649
B50: Highline Academic | C50: Academic | D50: 3583.755886 | E50: 2669.943549 | F50: 3267.556277 | G50: 3828 | H50: 2852 | I50: 3490 | J50: 244.244114 | K50: 182.056451 | L50: 222.443723
B51: Highline Basic Skills/Dev Ed | C51: Vocational | D51: 1324.79186 | E51: 848.359003 | F51: 1114.072082 | G51: 1415 | H51: 906 | I51: 1190 | J51: 90.20814 | K51: 57.640997 | L51: 75.927918
B52: Highline Vocational | C52: Basic Skills/Dev Ed | D52: 2394.79883 | E52: 1531.83915 | F52: 1560.839121 | G52: 2558 | H52: 1636 | I52: 1667 | J52: 163.20117 | K52: 104.16085 | L52: 106.160879
B53: Lake Washington Academic | C53: Academic | D53: 722.505992 | E53: 449.306242 | F53: 586.306105 | G53: 772 | H53: 480 | I53: 626 | J53: 49.494008 | K53: 30.693758 | L53: 39.693895
B54: Lake Washington Basic Skills/Dev Ed | C54: Vocational | D54: 1599.798012 | E54: 1386.978357 | F54: 1435.911602 | G54: 1710 | H54: 1483 | I54: 1535 | J54: 110.201988 | K54: 96.021643 | L54: 99.088398
B55: Lake Washington Vocational | C55: Basic Skills/Dev Ed | D55: 794.14626 | E55: 574.126318 | F55: 600.192977 | G55: 849 | H55: 614 | I55: 642 | J55: 54.85374 | K55: 39.873682 | L55: 41.807023
B56: Lower Columbia Academic | C56: Academic | D56: 1308.478297 | E56: 843.332201 | F56: 1204.011732 | G56: 1326 | H56: 855 | I56: 1220 | J56: 17.521703 | K56: 11.667799 | L56: 15.988268
B57: Lower Columbia Basic Skills/Dev Ed | C57: Vocational | D57: 568.499383 | E57: 330.486303 | F57: 391.019575 | G57: 576 | H57: 335 | I57: 396 | J57: 7.500617 | K57: 4.513697 | L57: 4.980425
B58: Lower Columbia Vocational | C58: Basic Skills/Dev Ed | D58: 1021.412022 | E58: 711.725681 | F58: 752.958964 | G58: 1035 | H58: 721 | I58: 763 | J58: 13.587978 | K58: 9.274319 | L58: 10.041036
B59: Olympic Academic | C59: Academic | D59: 2886.443737 | E59: 1704.811631 | F59: 2298.477698 | G59: 3023 | H59: 1785 | I59: 2407 | J59: 136.556263 | K59: 80.188369 | L59: 108.522302
B60: Olympic Basic Skills/Dev Ed | C60: Vocational | D60: 1643.110877 | E60: 542.099209 | F60: 819.632098 | G60: 1721 | H60: 568 | I60: 858 | J60: 77.889123 | K60: 25.900791 | L60: 38.367902
B61: Olympic Vocational | C61: Basic Skills/Dev Ed | D61: 743.14581 | E61: 471.566123 | F61: 471.566123 | G61: 778 | H61: 494 | I61: 494 | J61: 34.85419 | K61: 22.433877 | L61: 22.433877
B62: Peninsula Academic | C62: Academic | D62: 861.665695 | E62: 481.532785 | F62: 793.532456 | G62: 884 | H62: 494 | I62: 814 | J62: 22.334305 | K62: 12.467215 | L62: 20.467544
B63: Peninsula Basic Skills/Dev Ed | C63: Vocational | D63: 557.699411 | E63: 227.253184 | F63: 423.372953 | G63: 572 | H63: 233 | I63: 434 | J63: 14.300589 | K63: 5.746816 | L63: 10.627047
B64: Peninsula Vocational | C64: Basic Skills/Dev Ed | D64: 346.372997 | E64: 182.833173 | F64: 214.166475 | G64: 355 | H64: 187 | I64: 220 | J64: 8.627003 | K64: 4.166827 | L64: 5.833525
B65: Pierce Fort Steilacoom Academic | C65: Academic | D65: 3112.13696 | E65: 1502.405146 | F65: 2723.337277 | G65: 3291 | H65: 1589 | I65: 2880 | J65: 178.86304 | K65: 86.594854 | L65: 156.662723
B66: Pierce Fort Steilacoom Basic Skills/Dev Ed | C66: Vocational | D66: 727.905776 | E66: 346.106194 | F66: 642.239201 | G66: 770 | H66: 366 | I66: 679 | J66: 42.094224 | K66: 19.893806 | L66: 36.760799
B67: Pierce Fort Steilacoom Vocational | C67: Basic Skills/Dev Ed | D67: 820.932266 | E67: 516.399351 | F67: 593.99926 | G67: 868 | H67: 546 | I67: 628 | J67: 47.067734 | K67: 29.600649 | L67: 34.00074
B68: Pierce Puyallup Academic | C68: Academic | D68: 2373.197696 | E68: 1906.731474 | F68: 1906.731474 | G68: 2555 | H68: 2053 | I68: 2053 | J68: 181.802304 | K68: 146.268526 | L68: 146.268526
B69: Pierce Puyallup Basic Skills/Dev Ed | C69: Vocational | D69: 363.872738 | E69: 240.339591 | F69: 240.339591 | G69: 392 | H69: 259 | I69: 259 | J69: 28.127262 | K69: 18.660409 | L69: 18.660409
B70: Pierce Puyallup Vocational | C70: Basic Skills/Dev Ed | D70: 516.399195 | E70: 363.399455 | F70: 363.399455 | G70: 556 | H70: 391 | I70: 391 | J70: 39.600805 | K70: 27.600545 | L70: 27.600545
B71: Renton Academic | C71: Academic | D71: 397.799597 | E71: 180.733149 | F71: 357.732972 | G71: 423 | H71: 192 | I71: 380 | J71: 25.200403 | K71: 11.266851 | L71: 22.267028
B72: Renton Basic Skills/Dev Ed | C72: Vocational | D72: 1990.350754 | E72: 1218.285272 | F72: 1282.818516 | G72: 2116 | H72: 1295 | I72: 1364 | J72: 125.649246 | K72: 76.714728 | L72: 81.181484
B73: Renton Vocational | C73: Basic Skills/Dev Ed | D73: 1282.951703 | E73: 564.092459 | F73: 612.832394 | G73: 1364 | H73: 600 | I73: 652 | J73: 81.048297 | K73: 35.907541 | L73: 39.167606
B74: Seattle Central Academic | C74: Academic | D74: 3123.796741 | E74: 2394.070804 | F74: 2730.003797 | G74: 3326 | H74: 2549 | I74: 2907 | J74: 202.203259 | K74: 154.929196 | L74: 176.996203
B75: Seattle Central Basic Skills/Dev Ed | C75: Vocational | D75: 1450.291256 | E75: 983.105322 | F75: 1060.905236 | G75: 1544 | H75: 1047 | I75: 1129 | J75: 93.708744 | K75: 63.894678 | L75: 68.094764
B76: Seattle Central Vocational | C76: Basic Skills/Dev Ed | D76: 1500.224835 | E76: 1128.331863 | F76: 1130.731857 | G76: 1597 | H76: 1201 | I76: 1204 | J76: 96.775165 | K76: 72.668137 | L76: 73.268143
B77: Seattle North Academic | C77: Academic | D77: 2225.611065 | E77: 1537.011795 | F77: 1898.144769 | G77: 2379 | H77: 1643 | I77: 2029 | J77: 153.388935 | K77: 105.988205 | L77: 130.855231
B78: Seattle North Basic Skills/Dev Ed | C78: Vocational | D78: 1251.312045 | E78: 419.059583 | F78: 656.326004 | G78: 1338 | H78: 448 | I78: 702 | J78: 86.687955 | K78: 28.940417 | L78: 45.673996
B79: Seattle North Vocational | C79: Basic Skills/Dev Ed | D79: 1119.965553 | E79: 856.365794 | F79: 902.43241 | G79: 1197 | H79: 915 | I79: 965 | J79: 77.034447 | K79: 58.634206 | L79: 62.56759
B80: Seattle South Academic | C80: Academic | D80: 1447.105221 | E80: 1044.305626 | F80: 1320.305347 | G80: 1543 | H80: 1114 | I80: 1408 | J80: 95.894779 | K80: 69.694374 | L80: 87.694653
B81: Seattle South Basic Skills/Dev Ed | C81: Vocational | D81: 2219.917949 | E81: 815.026156 | F81: 900.292761 | G81: 2368 | H81: 869 | I81: 960 | J81: 148.082051 | K81: 53.973844 | L81: 59.707239
B82: Seattle South Vocational | C82: Basic Skills/Dev Ed | D82: 1482.532412 | E82: 925.485911 | F82: 953.15255 | G82: 1581 | H82: 987 | I82: 1016 | J82: 98.467588 | K82: 61.514089 | L82: 62.84745
B83: Seattle Vocational Institute Academic | C83: Academic | D83: 3.466632 | E83: 3.466632 | F83: 3.466632 | G83: 4 | H83: 4 | I83: 4 | J83: 0.533368 | K83: 0.533368 | L83: 0.533368
B84: Seattle Vocational Institute Basic Skills/Dev Ed | C84: Vocational | D84: 224.013033 | E84: 214.84638 | F84: 214.84638 | G84: 238 | H84: 228 | I84: 228 | J84: 13.986967 | K84: 13.15362 | L84: 13.15362
B85: Seattle Vocational Institute Vocational | C85: Basic Skills/Dev Ed | D85: 72.313277 | E85: 64.699949 | F85: 64.699949 | G85: 77 | H85: 69 | I85: 69 | J85: 4.686723 | K85: 4.300051 | L85: 4.300051
B86: Shoreline Academic | C86: Academic | D86: 2674.530316 | E86: 1952.731062 | F86: 2520.197154 | G86: 2861 | H86: 2089 | I86: 2696 | J86: 186.469684 | K86: 136.268938 | L86: 175.802846
B87: Shoreline Basic Skills/Dev Ed | C87: Vocational | D87: 1258.145367 | E87: 639.079327 | F87: 907.278977 | G87: 1346 | H87: 684 | I87: 971 | J87: 87.854633 | K87: 44.920673 | L87: 63.721023
B88: Shoreline Vocational | C88: Basic Skills/Dev Ed | D88: 854.378964 | E88: 724.059105 | F88: 751.059078 | G88: 914 | H88: 775 | I88: 803 | J88: 59.621036 | K88: 50.940895 | L88: 51.940922
B89: Skagit Valley Academic | C89: Academic | D89: 1874.970873 | E89: 988.305349 | F89: 1489.23802 | G89: 2001 | H89: 1055 | I89: 1589 | J89: 126.029127 | K89: 66.694651 | L89: 99.76198
B90: Skagit Valley Basic Skills/Dev Ed | C90: Vocational | D90: 1325.938353 | E90: 555.419331 | F90: 813.37237 | G90: 1415 | H90: 593 | I90: 868 | J90: 89.061647 | K90: 37.580669 | L90: 54.62763
B91: Skagit Valley Vocational | C91: Basic Skills/Dev Ed | D91: 781.585779 | E91: 423.2529 | F91: 479.452851 | G91: 834 | H91: 452 | I91: 512 | J91: 52.414221 | K91: 28.7471 | L91: 32.547149
B92: South Puget Sound Academic | C92: Academic | D92: 2604.157322 | E92: 1662.958247 | F92: 2177.691085 | G92: 2883 | H92: 1841 | I92: 2411 | J92: 278.842678 | K92: 178.041753 | L92: 233.308915
B93: South Puget Sound Basic Skills/Dev Ed | C93: Vocational | D93: 955.925633 | E93: 549.89271 | F93: 712.559225 | G93: 1058 | H93: 609 | I93: 789 | J93: 102.074367 | K93: 59.10729 | L93: 76.440775
B94: South Puget Sound Vocational | C94: Basic Skills/Dev Ed | D94: 589.612618 | E94: 323.632915 | F94: 377.219524 | G94: 653 | H94: 358 | I94: 418 | J94: 63.387382 | K94: 34.367085 | L94: 40.780476
B95: Spokane Academic | C95: Academic | D95: 2360.442 | E95: 1247.929 | F95: 1949.544 | G95: 2491 | H95: 1317 | I95: 2057 | J95: 130.558 | K95: 69.071 | L95: 107.456
B96: Spokane Basic Skills/Dev Ed | C96: Vocational | D96: 3528.233 | E96: 2575.076 | F96: 2827.141 | G96: 3723 | H96: 2717 | I96: 2983 | J96: 194.767 | K96: 141.924 | L96: 155.859
B97: Spokane Falls Academic | C97: Basic Skills/Dev Ed | D97: 2437.704 | E97: 1529.264 | F97: 1570.223 | G97: 2572 | H97: 1614 | I97: 1657 | J97: 134.296 | K97: 84.736 | L97: 86.777
B98: Spokane Falls Basic Skills/Dev Ed | C98: Academic | D98: 3450.35 | E98: 2570.068 | F98: 3334.906 | G98: 3576 | H98: 2664 | I98: 3456 | J98: 125.65 | K98: 93.932 | L98: 121.094
B99: Spokane Falls Vocational | C99: Vocational | D99: 1022.768 | E99: 695.274 | F99: 1003.454 | G99: 1060 | H99: 721 | I99: 1040 | J99: 37.232 | K99: 25.726 | L99: 36.546
B100: Spokane Vocational | C100: Basic Skills/Dev Ed | D100: 333.006 | E100: 289.383 | F100: 326.679 | G100: 345 | H100: 300 | I100: 338 | J100: 11.994 | K100: 10.617 | L100: 11.321
B101: System Total Academic | C101: Academic | D101: 79764.08894 | E101: 54392.85653 | F101: 70257.94376 | G101: 85550 | H101: 58376 | I101: 75347 | J101: 5785.911061 | K101: 3983.143468 | L101: 5089.056241
B102: System Total Basic Skills/Dev Ed | C102: Vocational | D102: 45595.03795 | E102: 25330.53335 | F102: 31823.88821 | G102: 48744 | H102: 27028 | I102: 33986 | J102: 3148.962053 | K102: 1697.466647 | L102: 2162.111786
B103: System Total Vocational | C103: Basic Skills/Dev Ed | D103: 32142.27744 | E103: 21174.6475 | F103: 22263.81504 | G103: 34412 | H103: 22649 | I103: 23814 | J103: 2269.722561 | K103: 1474.352504 | L103: 1550.18496
B104: Tacoma Academic | C104: Academic | D104: 3617.94 | E104: 2665.119 | F104: 3287.134 | G104: 3783 | H104: 2787 | I104: 3437 | J104: 165.06 | K104: 121.881 | L104: 149.866
B105: Tacoma Basic Skills/Dev Ed | C105: Vocational | D105: 928.37 | E105: 570.568 | F105: 813.711 | G105: 971 | H105: 597 | I105: 851 | J105: 42.63 | K105: 26.432 | L105: 37.289
B106: Tacoma Vocational | C106: Basic Skills/Dev Ed | D106: 980.016 | E106: 795.487 | F106: 815.134 | G106: 1025 | H106: 832 | I106: 853 | J106: 44.984 | K106: 36.513 | L106: 37.866
B107: Walla Walla Academic | C107: Academic | D107: 1215.845134 | E107: 803.559039 | F107: 1042.73868 | G107: 1273 | H107: 841 | I107: 1092 | J107: 57.154866 | K107: 37.440961 | L107: 49.26132
B108: Walla Walla Basic Skills/Dev Ed | C108: Vocational | D108: 1201.578306 | E108: 847.732363 | F108: 948.505564 | G108: 1258 | H108: 888 | I108: 993 | J108: 56.421694 | K108: 40.267637 | L108: 44.494436
B109: Walla Walla Vocational | C109: Basic Skills/Dev Ed | D109: 531.412228 | E109: 350.525911 | F109: 384.292463 | G109: 556 | H109: 367 | I109: 402 | J109: 24.587772 | K109: 16.474089 | L109: 17.707537
B110: Wenatchee Valley Academic | C110: Academic | D110: 1725.398191 | E110: 1170.13209 | F110: 1454.265137 | G110: 1835 | H110: 1244 | I110: 1547 | J110: 109.601809 | K110: 73.86791 | L110: 92.734863
B111: Wenatchee Valley Basic Skills/Dev Ed | C111: Vocational | D111: 987.785703 | E111: 538.319329 | F111: 579.452595 | G111: 1050 | H111: 572 | I111: 616 | J111: 62.214297 | K111: 33.680671 | L111: 36.547405
B112: Wenatchee Valley Vocational | C112: Basic Skills/Dev Ed | D112: 550.13932 | E112: 311.199683 | F112: 327.866333 | G112: 585 | H112: 331 | I112: 349 | J112: 34.86068 | K112: 19.800317 | L112: 21.133667
B113: Whatcom Academic | C113: Academic | D113: 2698.443835 | E113: 2110.111104 | F113: 2498.777375 | G113: 2914 | H113: 2279 | I113: 2698 | J113: 215.556165 | K113: 168.888896 | L113: 199.222625
B114: Whatcom Basic Skills/Dev Ed | C114: Vocational | D114: 601.572828 | E114: 406.706313 | F114: 485.906238 | G114: 650 | H114: 439 | I114: 525 | J114: 48.427172 | K114: 32.293687 | L114: 39.093762
B115: Whatcom Vocational | C115: Basic Skills/Dev Ed | D115: 632.959188 | E115: 473.692675 | F115: 509.359306 | G115: 683 | H115: 511 | I115: 550 | J115: 50.040812 | K115: 37.307325 | L115: 40.640694
B116: Yakima Valley Academic | C116: Academic | D116: 1833.318107 | E116: 1221.918718 | F116: 1519.785084 | G116: 2011 | H116: 1340 | I116: 1667 | J116: 177.681893 | K116: 118.081282 | L116: 147.214916
B117: Yakima Valley Basic Skills/Dev Ed | C117: Vocational | D117: 1082.752143 | E117: 546.819348 | F117: 818.819001 | G117: 1188 | H117: 600 | I117: 898 | J117: 105.247857 | K117: 53.180652 | L117: 79.180999
B118: Yakima Valley Vocational | C118: Basic Skills/Dev Ed | D118: 1319.345119 | E118: 721.76574 | F118: 721.76574 | G118: 1447 | H118: 792 | I118: 792 | J118: 127.654881 | K118: 70.23426 | L118: 70.23426
C121: Source:
C122: FTEs: Fall 2016 DataWarehouse
C123: All funding sources, all ages, all intents (excluding community service), all enrollments (excluding DOC)
C124: Projections: College participation rates by county and age (Fall 2016) applied to 2026 OFM population projections
C126: updated by ddupree, 2.27.2017, v1

Sheet 2016-26 Enrollment Projection
A1: WA State Board for Community and Technical Colleges
A2: Summary of Fall FTEs Used in the 2019-21 CAM
A3: CAM V01
A4: EXCLUDING Department of Corrections (DOC)
A5: Type 1 = Day On-Campus (excludes Online)
A6: Type 2 = Day On-Campus + Online
B7: Fall 2016 FTEs | E7: Fall 2026 FTE Projections | H7: FTE Growth (Fall)
A8: Bates | B8: Total | C8: Type 1 | D8: Type 2 | E8: Total | F8: Type 1 | G8: Type 2 | H8: Total | I8: Type 1 | J8: Type 2
A9: Academic | B9: 122.199873 | C9: 81.133249 | D9: 122.199873 | E9: 130 | F9: 86 | G9: 130 | H9: 7.800127 | I9: 4.866751 | J9: 7.800127
A10: Vocational | B10: 2385.123998 | C10: 1292.911755 | D10: 1500.244885 | E10: 2537 | F10: 1375 | G10: 1596 | H10: 151.876002 | I10: 82.088245 | J10: 95.755115
A11: Basic Skills/Dev Ed | B11: 509.726079 | C11: 334.032818 | D11: 345.032807 | E11: 542 | F11: 355 | G11: 367 | H11: 32.273921 | I11: 20.967182 | J11: 21.967193
A12: Total | B12: 3017.04995 | C12: 1708.077822 | D12: 1967.477565 | E12: 3209.127679 | F12: 1816 | G12: 2093 | H12: 191.95005 | I12: 107.922178 | J12: 125.522435
B15: Fall 2016 FTEs | E15: Fall 2026 FTE Projections | H15: FTE Growth (Fall)
A16: Bellevue | B16: Total | C16: Type 1 | D16: Type 2 | E16: Total | F16: Type 1 | G16: Type 2 | H16: Total | I16: Type 1 | J16: Type 2
A17: Academic | B17: 7443.439382 | C17: 5139.308126 | D17: 6850.973255 | E17: 7934 | F17: 5478 | G17: 7302 | H17: 490.560618 | I17: 338.691874 | J17: 451.026745
A18: Vocational | B18: 2495.204305 | C18: 1155.63209 | D18: 1704.098145 | E18: 2660 | F18: 1232 | G18: 1817 | H18: 164.795695 | I18: 76.36791 | J18: 112.901855
A19: Basic Skills/Dev Ed | B19: 1352.125568 | C19: 1046.659258 | D19: 1093.392531 | E19: 1441 | F19: 1115 | G19: 1165 | H19: 88.874432 | I19: 68.340742 | J19: 71.607469
A20: Total | B20: 11290.76925 | C20: 7341.599474 | D20: 9648.463931 | E20: 12034.23219 | F20: 7825 | G20: 10284 | H20: 744.230745 | I20: 483.400526 | J20: 635.536069
B23: Fall 2016 FTEs | E23: Fall 2026 FTE Projections | H23: FTE Growth (Fall)
A24: Bellingham | B24: Total | C24: Type 1 | D24: Type 2 | E24: Total | F24: Type 1 | G24: Type 2 | H24: Total | I24: Type 1 | J24: Type 2
A25: Academic | B25: 402.799607 | C25: 219.133124 | D25: 353.466323 | E25: 433 | F25: 236 | G25: 380 | H25: 30.200393 | I25: 16.866876 | J25: 26.533677
A26: Vocational | B26: 1558.21795 | C26: 1113.091904 | D26: 1255.091683 | E26: 1674 | F26: 1196 | G26: 1348 | H26: 115.78205 | I26: 82.908096 | J26: 92.908317
A27: Basic Skills/Dev Ed | B27: 287.819669 | C27: 233.40639 | D27: 249.073041 | E27: 309 | F27: 251 | G27: 267 | H27: 21.180331 | I27: 17.59361 | J27: 17.926959
A28: Total | B28: 2248.837226 | C28: 1565.631418 | D28: 1857.631047 | E28: 2416.036259 | F28: 1683 | G28: 1995 | H28: 167.162774 | I28: 117.368582 | J28: 137.368953
B31: Fall 2016 FTEs | E31: Fall 2026 FTE Projections | H31: FTE Growth (Fall)
A32: Big Bend | B32: Total | C32: Type 1 | D32: Type 2 | E32: Total | F32: Type 1 | G32: Type 2 | H32: Total | I32: Type 1 | J32: Type 2
A33: Academic | B33: 1113.36543 | C33: 814.432373 | D33: 1016.365526 | E33: 1292 | F33: 945 | G33: 1179 | H33: 178.63457 | I33: 130.567627 | J33: 162.634474
A34: Vocational | B34: 542.486061 | C34: 357.819571 | D34: 399.886207 | E34: 630 | F34: 416 | G34: 464 | H34: 87.513939 | I34: 58.180429 | J34: 64.113793
A35: Basic Skills/Dev Ed | B35: 394.246178 | C35: 259.306329 | D35: 276.046302 | E35: 458 | F35: 301 | G35: 321 | H35: 63.753822 | I35: 41.693671 | J35: 44.953698
A36: Total | B36: 2050.097669 | C36: 1431.558273 | D36: 1692.298035 | E36: 2379.437907 | F36: 1662 | G36: 1964 | H36: 329.902331 | I36: 230.441727 | J36: 271.701965
B39: Fall 2016 FTEs | E39: Fall 2026 FTE Projections | H39: FTE Growth (Fall)
A40: Cascadia | B40: Total | C40: Type 1 | D40: Type 2 | E40: Total | F40: Type 1 | G40: Type 2 | H40: Total | I40: Type 1 | J40: Type 2
A41: Academic | B41: 2285.731148 | C41: 1562.398532 | D41: 1885.398209 | E41: 2481 | F41: 1696 | G41: 2046 | H41: 195.268852 | I41: 133.601468 | J41: 160.601791
A42: Vocational | B42: 174.466463 | C42: 109.53321 | D42: 137.266503 | E42: 189 | F42: 119 | G42: 149 | H42: 14.533537 | I42: 9.46679 | J42: 11.733497
A43: Basic Skills/Dev Ed | B43: 524.399457 | C43: 415.866259 | D43: 435.866239 | E43: 569 | F43: 451 | G43: 473 | H43: 44.600543 | I43: 35.133741 | J43: 37.133761
A44: Total | B44: 2984.597068 | C44: 2087.798001 | D44: 2458.530951 | E44: 3239.57274 | F44: 2266 | G44: 2668 | H44: 254.402932 | I44: 178.201999 | J44: 209.469049
B47: Fall 2016 FTEs | E47: Fall 2026 FTE Projections | H47: FTE Growth (Fall)
A48: Centralia | B48: Total | C48: Type 1 | D48: Type 2 | E48: Total | F48: Type 1 | G48: Type 2 | H48: Total | I48: Type 1 | J48: Type 2
A49: Academic | B49: 1139.665209 | C49: 859.465615 | D49: 1064.798761 | E49: 1190 | F49: 897 | G49: 1112 | H49: 50.334791 | I49: 37.534385 | J49: 47.201239
A50: Vocational | B50: 724.439153 | C50: 483.886199 | D50: 553.999442 | E50: 756 | F50: 505 | G50: 578 | H50: 31.560847 | I50: 21.113801 | J50: 24.000558
A51: Basic Skills/Dev Ed | B51: 414.779517 | C51: 306.232996 | D51: 312.899656 | E51: 433 | F51: 320 | G51: 327 | H51: 18.220483 | I51: 13.767004 | J51: 14.100344
A52: Total | B52: 2278.883879 | C52: 1649.58481 | D52: 1931.697859 | E52: 2379.287082 | F52: 1722 | G52: 2017 | H52: 100.116121 | I52: 72.41519 | J52: 85.302141
B55: Fall 2016 FTEs | E55: Fall 2026 FTE Projections | H55: FTE Growth (Fall)
A56: Clark | B56: Total | C56: Type 1 | D56: Type 2 | E56: Total | F56: Type 1 | G56: Type 2 | H56: Total | I56: Type 1 | J56: Type 2
A57: Academic | B57: 4996.540252 | C57: 3385.535461 | D57: 4253.961221 | E57: 5344 | F57: 3621 | G57: 4550 | H57: 347.459748 | I57: 235.464539 | J57: 296.038779
A58: Vocational | B58: 1677.438089 | C58: 855.679015 | D58: 1127.212107 | E58: 1794 | F58: 915 | G58: 1206 | H58: 116.561911 | I58: 59.320985 | J58: 78.787893
A59: Basic Skills/Dev Ed | B59: 1243.99876 | C59: 824.665778 | D59: 915.865684 | E59: 1330 | F59: 882 | G59: 979 | H59: 86.00124 | I59: 57.334222 | J59: 63.134316
A60: Total | B60: 7917.977101 | C60: 5065.880254 | D60: 6297.039012 | E60: 8467.902399 | F60: 5418 | G60: 6735 | H60: 550.022899 | I60: 352.119746 | J60: 437.960988
B63: Fall 2016 FTEs | E63: Fall 2026 FTE Projections | H63: FTE Growth (Fall)
A64: Clover Park | B64: Total | C64: Type 1 | D64: Type 2 | E64: Total | F64: Type 1 | G64: Type 2 | H64: Total | I64: Type 1 | J64: Type 2
A65: Academic | B65: 439.266277 | C65: 287.33309 | D65: 412.999631 | E65: 463 | F65: 303 | G65: 435 | H65: 23.733723 | I65: 15.66691 | J65: 22.000369
A66: Vocational | B66: 2563.950151 | C66: 1485.678089 | D66: 1656.104539 | E66: 2705 | F66: 1567 | G66: 1747 | H66: 141.049849 | I66: 81.321911 | J66: 90.895461
A67: Basic Skills/Dev Ed | B67: 454.333004 | C67: 308.599768 | D67: 332.933077 | E67: 479 | F67: 325 | G67: 351 | H67: 24.666996 | I67: 16.400232 | J67: 18.066923
A68: Total | B68: 3457.549432 | C68: 2081.610947 | D68: 2402.037247 | E68: 3647.195597 | F68: 2195 | G68: 2533 | H68: 189.450568 | I68: 113.389053 | J68: 130.962753
B71: Fall 2016 FTEs | E71: Fall 2026 FTE Projections | H71: FTE Growth (Fall)
A72: Columbia Basin | B72: Total | C72: Type 1 | D72: Type 2 | E72: Total | F72: Type 1 | G72: Type 2 | H72: Total | I72: Type 1 | J72: Type 2
A73: Academic | B73: 3183.515936 | C73: 2351.596973 | D73: 2944.596269 | E73: 3810 | F73: 2814 | G73: 3524 | H73: 626.484064 | I73: 462.403027 | J73: 579.403731
A74: Vocational | B74: 1227.311901 | C74: 377.726154 | D74: 658.059137 | E74: 1469 | F74: 452 | G74: 788 | H74: 241.688099 | I74: 74.273846 | J74: 129.940863
A75: Basic Skills/Dev Ed | B75: 1065.359002 | C75: 571.145927 | D75: 617.812547 | E75: 1275 | F75: 684 | G75: 739 | H75: 209.640998 | I75: 112.854073 | J75: 121.187453
A76: Total | B76: 5476.186839 | C76: 3300.469054 | D76: 4220.467953 | E76: 6553.658898 | F76: 3950 | G76: 5051 | H76: 1077.813161 | I76: 649.530946 | J76: 830.532047
B79: Fall 2016 FTEs | E79: Fall 2026 FTE Projections | H79: FTE Growth (Fall)
A80: Edmonds | B80: Total | C80: Type 1 | D80: Type 2 | E80: Total | F80: Type 1 | G80: Type 2 | H80: Total | I80: Type 1 | J80: Type 2
A81: Academic | B81: 3383.363146 | C81: 2270.717634 | D81: 2974.050306 | E81: 3690 | F81: 2477 | G81: 3244 | H81: 306.636854 | I81: 206.282366 | J81: 269.949694
A82: Vocational | B82: 1751.691149 | C82: 778.945825 | D82: 1179.145393 | E82: 1910 | F82: 849 | G82: 1286 | H82: 158.308851 | I82: 70.054175 | J82: 106.854607
A83: Basic Skills/Dev Ed | B83: 1304.945212 | C83: 974.745614 | D83: 1000.412255 | E83: 1423 | F83: 1063 | G83: 1091 | H83: 118.054788 | I83: 88.254386 | J83: 90.587745
A84: Total | B84: 6439.999507 | C84: 4024.409073 | D84: 5153.607954 | E84: 7023.089005 | F84: 4389 | G84: 5621 | H84: 583.000493 | I84: 364.590927 | J84: 467.392046
B87: Fall 2016 FTEs | E87: Fall 2026 FTE Projections | H87: FTE Growth (Fall)
A88: Everett | B88: Total | C88: Type 1 | D88: Type 2 | E88: Total | F88: Type 1 | G88: Type 2 | H88: Total | I88: Type 1 | J88: Type 2
A89: Academic | B89: 3598.902693 | C89: 2403.730645 | D89: 3101.19659 | E89: 3923 | F89: 2620 | G89: 3380 | H89: 324.097307 | I89: 216.269355 | J89: 278.80341
A90: Vocational | B90: 1699.26502 | C90: 778.312608 | D90: 1166.038895 | E90: 1852 | F90: 848 | G90: 1271 | H90: 152.73498 | I90: 69.687392 | J90: 104.961105
A91: Basic Skills/Dev Ed | B91: 1233.298725 | C91: 819.732481 | D91: 866.399101 | E91: 1344 | F91: 893 | G91: 944 | H91: 110.701275 | I91: 73.267519 | J91: 77.600899
A92: Total | B92: 6531.466438 | C92: 4001.775734 | D92: 5133.634586 | E92: 7119.901783 | F92: 4361 | G92: 5595 | H92: 587.533562 | I92: 359.224266 | J92: 461.365414
B95: Fall 2016 FTEs | E95: Fall 2026 FTE Projections | H95: FTE Growth (Fall)
A96: Grays Harbor | B96: Total | C96: Type 1 | D96: Type 2 | E96: Total | F96: Type 1 | G96: Type 2 | H96: Total | I96: Type 1 | J96: Type 2
A97: Academic | B97: 860.812236 | C97: 605.525879 | D97: 848.725634 | E97: 875 | F97: 616 | G97: 863 | H97: 14.187764 | I97: 10.474121 | J97: 14.274366
A98: Vocational | B98: 457.259619 | C98: 321.99313 | D98: 383.859733 | E98: 465 | F98: 327 | G98: 390 | H98: 7.740381 | I98: 5.00687 | J98: 6.140267
A99: Basic Skills/Dev Ed | B99: 427.699511 | C99: 284.659695 | D99: 360.859619 | E99: 435 | F99: 290 | G99: 367 | H99: 7.300489 | I99: 5.340305 | J99: 6.140381
A100: Total | B100: 1745.771366 | C100: 1212.178704 | D100: 1593.444986 | E100: 1774.809211 | F100: 1233 | G100: 1620 | H100: 29.228634 | I100: 20.821296 | J100: 26.555014
B103: Fall 2016 FTEs | E103: Fall 2026 FTE Projections | H103: FTE Growth (Fall)
A104: Green River | B104: Total | C104: Type 1 | D104: Type 2 | E104: Total | F104: Type 1 | G104: Type 2 | H104: Total | I104: Type 1 | J104: Type 2
A105: Academic | B105: 4693.128453 | C105: 3302.063188 | D105: 4065.32909 | E105: 5003 | F105: 3520 | G105: 4334 | H105: 309.871547 | I105: 217.936812 | J105: 268.67091
A106: Vocational | B106: 1523.551661 | C106: 722.492528 | D106: 1010.905576 | E106: 1624 | F106: 770 | G106: 1078 | H106: 100.448339 | I106: 47.507472 | J106: 67.094424
A107: Basic Skills/Dev Ed | B107: 1824.192381 | C107: 962.466027 | D107: 973.199351 | E107: 1945 | F107: 1026 | G107: 1038 | H107: 120.807619 | I107: 63.533973 | J107: 64.800649
A108: Total | B108: 8040.872495 | C108: 4987.021743 | D108: 6049.434017 | E108: 8571.933228 | F108: 5316 | G108: 6450 | H108: 531.127505 | I108: 328.978257 | J108: 400.565983
B111: Fall 2016 FTEs | E111: Fall 2026 FTE Projections | H111: FTE Growth (Fall)
A112: Highline | B112: Total | C112: Type 1 | D112: Type 2 | E112: Total | F112: Type 1 | G112: Type 2 | H112: Total | I112: Type 1 | J112: Type 2
A113: Academic | B113: 3583.755886 | C113: 2669.943549 | D113: 3267.556277 | E113: 3828 | F113: 2852 | G113: 3490 | H113: 244.244114 | I113: 182.056451 | J113: 222.443723
A114: Vocational | B114: 1324.79186 | C114: 848.359003 | D114: 1114.072082 | E114: 1415 | F114: 906 | G114: 1190 | H114: 90.20814 | I114: 57.640997 | J114: 75.927918
A115: Basic Skills/Dev Ed | B115: 2394.79883 | C115: 1531.83915 | D115: 1560.839121 | E115: 2558 | F115: 1636 | G115: 1667 | H115: 163.20117 | I115: 104.16085 | J115: 106.160879
A116: Total | B116: 7303.346576 | C116: 5050.141702 | D116: 5942.46748 | E116: 7801.505129 | F116: 5394 | G116: 6347 | H116: 497.653424 | I116: 343.858298 | J116: 404.53252
B119: Fall 2016 FTEs | E119: Fall 2026 FTE Projections | H119: FTE Growth (Fall)
A120: Lake Washington | B120: Total | C120: Type 1 | D120: Type 2 | E120: Total | F120: Type 1 | G120: Type 2 | H120: Total | I120: Type 1 | J120: Type 2
A121: Academic | B121: 722.505992 | C121: 449.306242 | D121: 586.306105 | E121: 772 | F121: 480 | G121: 626 | H121: 49.494008 | I121: 30.693758 | J121: 39.693895
A122: Vocational | B122: 1599.798012 | C122: 1386.978357 | D122: 1435.911602 | E122: 1710 | F122: 1483 | G122: 1535 | H122: 110.201988 | I122: 96.021643 | J122: 99.088398
A123: Basic Skills/Dev Ed | B123: 794.14626 | C123: 574.126318 | D123: 600.192977 | E123: 849 | F123: 614 | G123: 642 | H123: 54.85374 | I123: 39.873682 | J123: 41.807023
A124: Total | B124: 3116.450264 | C124: 2410.410917 | D124: 2622.410684 | E124: 3330.836178 | F124: 2577 | G124: 2803 | H124: 214.549736 | I124: 166.589083 | J124: 180.589316
B127: Fall 2016 FTEs | E127: Fall 2026 FTE Projections | H127: FTE Growth (Fall)
A128: Lower Columbia | B128: Total | C128: Type 1 | D128: Type 2 | E128: Total | F128: Type 1 | G128: Type 2 | H128: Total | I128: Type 1 | J128: Type 2
A129: Academic | B129: 1308.478297 | C129: 843.332201 | D129: 1204.011732 | E129: 1326 | F129: 855 | G129: 1220 | H129: 17.521703 | I129: 11.667799 | J129: 15.988268
A130: Vocational | B130: 568.499383 | C130: 330.486303 | D130: 391.019575 | E130: 576 | F130: 335 | G130: 396 | H130: 7.500617 | I130: 4.513697 | J130: 4.980425
A131: Basic Skills/Dev Ed | B131: 1021.412022 | C131: 711.725681 | D131: 752.958964 | E131: 1035 | F131: 721 | G131: 763 | H131: 13.587978 | I131: 9.274319 | J131: 10.041036
A132: Total | B132: 2898.389702 | C132: 1885.544185 | D132: 2347.990271 | E132: 2936.776355 | F132: 1911 | G132: 2379 | H132: 38.610298 | I132: 25.455815 | J132: 31.009729
B135: Fall 2016 FTEs | E135: Fall 2026 FTE Projections | H135: FTE Growth (Fall)
A136: Olympic | B136: Total | C136: Type 1 | D136: Type 2 | E136: Total | F136: Type 1 | G136: Type 2 | H136: Total | I136: Type 1 | J136: Type 2
A137: Academic | B137: 2886.443737 | C137: 1704.811631 | D137: 2298.477698 | E137: 3023 | F137: 1785 | G137: 2407 | H137: 136.556263 | I137: 80.188369 | J137: 108.522302
A138: Vocational | B138: 1643.110877 | C138: 542.099209 | D138: 819.632098 | E138: 1721 | F138: 568 | G138: 858 | H138: 77.889123 | I138: 25.900791 | J138: 38.367902
A139: Basic Skills/Dev Ed | B139: 743.14581 | C139: 471.566123 | D139: 471.566123 | E139: 778 | F139: 494 | G139: 494 | H139: 34.85419 | I139: 22.433877 | J139: 22.433877
A140: Total | B140: 5272.700424 | C140: 2718.476963 | D140: 3589.675919 | E140: 5521.761371 | F140: 2847 | G140: 3759 | H140: 249.299576 | I140: 128.523037 | J140: 169.324081
B143: Fall 2016 FTEs | E143: Fall 2026 FTE Projections | H143: FTE Growth (Fall)
A144: Peninsula | B144: Total | C144: Type 1 | D144: Type 2 | E144: Total | F144: Type 1 | G144: Type 2 | H144: Total | I144: Type 1 | J144: Type 2
A145: Academic | B145: 861.665695 | C145: 481.532785 | D145: 793.532456 | E145: 884 | F145: 494 | G145: 814 | H145: 22.334305 | I145: 12.467215 | J145: 20.467544
A146: Vocational | B146: 557.699411 | C146: 227.253184 | D146: 423.372953 | E146: 572 | F146: 233 | G146: 434 | H146: 14.300589 | I146: 5.746816 | J146: 10.627047
A147: Basic Skills/Dev Ed | B147: 346.372997 | C147: 182.833173 | D147: 214.166475 | E147: 355 | F147: 187 | G147: 220 | H147: 8.627003 | I147: 4.166827 | J147: 5.833525
A148: Total | B148: 1765.738103 | C148: 891.619142 | D148: 1431.071884 | E148: 1811.255824 | F148: 914 | G148: 1468 | H148: 45.261897 | I148: 22.380858 | J148: 36.928116
B151: Fall 2016 FTEs | E151: Fall 2026 FTE Projections | H151: FTE Growth (Fall)
A152: Pierce Fort Steilacoom | B152: Total | C152: Type 1 | D152: Type 2 | E152: Total | F152: Type 1 | G152: Type 2 | H152: Total | I152: Type 1 | J152: Type 2
A153: Academic | B153: 3112.13696 | C153: 1502.405146 | D153: 2723.337277 | E153: 3291 | F153: 1589 | G153: 2880 | H153: 178.86304 | I153: 86.594854 | J153: 156.662723
A154: Vocational | B154: 727.905776 | C154: 346.106194 | D154: 642.239201 | E154: 770 | F154: 366 | G154: 679 | H154: 42.094224 | I154: 19.893806 | J154: 36.760799
A155: Basic Skills/Dev Ed | B155: 820.932266 | C155: 516.399351 | D155: 593.99926 | E155: 868 | F155: 546 | G155: 628 | H155: 47.067734 | I155: 29.600649 | J155: 34.00074
A156: Total | B156: 4660.975002 | C156: 2364.910691 | D156: 3959.575738 | E156: 4929.056925 | F156: 2501 | G156: 4187 | H156: 268.024998 | I156: 136.089309 | J156: 227.424262
B159: Fall 2016 FTEs | E159: Fall 2026 FTE Projections | H159: FTE Growth (Fall)
A160: Pierce Puyallup | B160: Total | C160: Type 1 | D160: Type 2 | E160: Total | F160: Type 1 | G160: Type 2 | H160: Total | I160: Type 1 | J160: Type 2
A161: Academic | B161: 2373.197696 | C161: 1906.731474 | D161: 1906.731474 | E161: 2555 | F161: 2053 | G161: 2053 | H161: 181.802304 | I161: 146.268526 | J161: 146.268526
A162: Vocational | B162: 363.872738 | C162: 240.339591 | D162: 240.339591 | E162: 392 | F162: 259 | G162: 259 | H162: 28.127262 | I162: 18.660409 | J162: 18.660409
A163: Basic Skills/Dev Ed | B163: 516.399195 | C163: 363.399455 | D163: 363.399455 | E163: 556 | F163: 391 | G163: 391 | H163: 39.600805 | I163: 27.600545 | J163: 27.600545
A164: Total | B164: 3253.469629 | C164: 2510.47052 | D164: 2510.47052 | E164: 3502.407945 | F164: 2703 | G164: 2703 | H164: 249.530371 | I164: 192.52948 | J164: 192.52948
B167: Fall 2016 FTEs | E167: Fall 2026 FTE Projections | H167: FTE Growth (Fall)
A168: Renton | B168: Total | C168: Type 1 | D168: Type 2 | E168: Total | F168: Type 1 | G168: Type 2 | H168: Total | I168: Type 1 | J168: Type 2
A169: Academic | B169: 397.799597 | C169: 180.733149 | D169: 357.732972 | E169: 423 | F169: 192 | G169: 380 | H169: 25.200403 | I169: 11.266851 | J169: 22.267028
A170: Vocational | B170: 1990.350754 | C170: 1218.285272 | D170: 1282.818516 | E170: 2116 | F170: 1295 | G170: 1364 | H170: 125.649246 | I170: 76.714728 | J170: 81.181484
A171: Basic Skills/Dev Ed | B171: 1282.951703 | C171: 564.092459 | D171: 612.832394 | E171: 1364 | F171: 600 | G171: 652 | H171: 81.048297 | I171: 35.907541 | J171: 39.167606
A172: Total | B172: 3671.102054 | C172: 1963.11088 | D172: 2253.383882 | E172: 3903.386681 | F172: 2087 | G172: 2396 | H172: 231.897946 | I172: 123.88912 | J172: 142.616118
B175: Fall 2016 FTEs | E175: Fall 2026 FTE Projections | H175: FTE Growth (Fall)
A176: Seattle Central | B176: Total | C176: Type 1 | D176: Type 2 | E176: Total | F176: Type 1 | G176: Type 2 | H176: Total | I176: Type 1 | J176: Type 2
A177: Academic | B177: 3123.796741 | C177: 2394.070804 | D177: 2730.003797 | E177: 3326 | F177: 2549 | G177: 2907 | H177: 202.203259 | I177: 154.929196 | J177: 176.996203
A178: Vocational | B178: 1450.291256 | C178: 983.105322 | D178: 1060.905236 | E178: 1544 | F178: 1047 | G178: 1129 | H178: 93.708744 | I178: 63.894678 | J178: 68.094764
A179: Basic Skills/Dev Ed | B179: 1500.224835 | C179: 1128.331863 | D179: 1130.731857 | E179: 1597 | F179: 1201 | G179: 1204 | H179: 96.775165 | I179: 72.668137 | J179: 73.268143
A180: Total | B180: 6074.312832 | C180: 4505.507989 | D180: 4921.64089 | E180: 6466.886295 | F180: 4797 | G180: 5240 | H180: 392.687168 | I180: 291.492011 | J180: 318.35911
B183: Fall 2016 FTEs | E183: Fall 2026 FTE Projections | H183: FTE Growth (Fall)
A184: Seattle North | B184: Total | C184: Type 1 | D184: Type 2 | E184: Total | F184: Type 1 | G184: Type 2 | H184: Total | I184: Type 1 | J184: Type 2
A185: Academic | B185: 2225.611065 | C185: 1537.011795 | D185: 1898.144769 | E185: 2379 | F185: 1643 | G185: 2029 | H185: 153.388935 | I185: 105.988205 | J185: 130.855231
A186: Vocational | B186: 1251.312045 | C186: 419.059583 | D186: 656.326004 | E186: 1338 | F186: 448 | G186: 702 | H186: 86.687955 | I186: 28.940417 | J186: 45.673996
A187: Basic Skills/Dev Ed | B187: 1119.965553 | C187: 856.365794 | D187: 902.43241 | E187: 1197 | F187: 915 | G187: 965 | H187: 77.034447 | I187: 58.634206 | J187: 62.56759
A188: Total | B188: 4596.888663 | C188: 2812.437172 | D188: 3456.903183 | E188: 4914.468693 | F188: 3006 | G188: 3696 | H188: 317.111337 | I188: 193.562828 | J188: 239.096817
B191: Fall 2016 FTEs | E191: Fall 2026 FTE Projections | H191: FTE Growth (Fall)
A192: Seattle South | B192: Total | C192: Type 1 | D192: Type 2 | E192: Total | F192: Type 1 | G192: Type 2 | H192: Total | I192: Type 1 | J192: Type 2
A193: Academic | B193: 1447.105221 | C193: 1044.305626 | D193: 1320.305347 | E193: 1543 | F193: 1114 | G193: 1408 | H193: 95.894779 | I193: 69.694374 | J193: 87.694653
A194: Vocational | B194: 2219.917949 | C194: 815.026156 | D194: 900.292761 | E194: 2368 | F194: 869 | G194: 960 | H194: 148.082051 | I194: 53.973844 | J194: 59.707239
A195: Basic Skills/Dev Ed | B195: 1482.532412 | C195: 925.485911 | D195: 953.15255 | E195: 1581 | F195: 987 | G195: 1016 | H195: 98.467588 | I195: 61.514089 | J195: 62.84745
A196: Total | B196: 5149.555582 | C196: 2784.817693 | D196: 3173.750658 | E196: 5492.277991 | F196: 2970 | G196: 3384 | H196: 342.444418 | I196: 185.182307 | J196: 210.249342
B199: Fall 2016 FTEs | E199: Fall 2026 FTE Projections | H199: FTE Growth (Fall)
A200: Seattle Vocational Institute | B200: Total | C200: Type 1 | D200: Type 2 | E200: Total | F200: Type 1 | G200: Type 2 | H200: Total | I200: Type 1 | J200: Type 2
A201: Academic | B201: 3.466632 | C201: 3.466632 | D201: 3.466632 | E201: 4 | F201: 4 | G201: 4 | H201: 0.533368 | I201: 0.533368 | J201: 0.533368
A202: Vocational | B202: 224.013033 | C202: 214.84638 | D202: 214.84638 | E202: 238 | F202: 228 | G202: 228 | H202: 13.986967 | I202: 13.15362 | J202: 13.15362
A203: Basic Skills/Dev Ed | B203: 72.313277 | C203: 64.699949 | D203: 64.699949 | E203: 77 | F203: 69 | G203: 69 | H203: 4.686723 | I203: 4.300051 | J203: 4.300051
A204: Total | B204: 299.792942 | C204: 283.012961 | D204: 283.012961 | E204: 318.2806254 | F204: 301 | G204: 301 | H204: 19.207058 | I204: 17.987039 | J204: 17.987039
B207: Fall 2016 FTEs | E207: Fall 2026 FTE Projections | H207: FTE Growth (Fall)
A208: Shoreline | B208: Total | C208: Type 1 | D208: Type 2 | E208: Total | F208: Type 1 | G208: Type 2 | H208: Total | I208: Type 1 | J208: Type 2
A209: Academic | B209: 2674.530316 | C209: 1952.731062 | D209: 2520.197154 | E209: 2861 | F209: 2089 | G209: 2696 | H209: 186.469684 | I209: 136.268938 | J209: 175.802846
A210: Vocational | B210: 1258.145367 | C210: 639.079327 | D210: 907.278977 | E210: 1346 | F210: 684 | G210: 971 | H210: 87.854633 | I210: 44.920673 | J210: 63.721023
A211: Basic Skills/Dev Ed | B211: 854.378964 | C211: 724.059105 | D211: 751.059078 | E211: 914 | F211: 775 | G211: 803 | H211: 59.621036 | I211: 50.940895 | J211: 51.940922
A212: Total | B212: 4787.054647 | C212: 3315.869494 | D212: 4178.535209 | E212: 5120.45577 | F212: 3548 | G212: 4470 | H212: 333.945353 | I212: 232.130506 | J212: 291.464791
B215: Fall 2016 FTEs | E215: Fall 2026 FTE Projections | H215: FTE Growth (Fall)
A216: Skagit Valley | B216: Total | C216: Type 1 | D216: Type 2 | E216: Total | F216: Type 1 | G216: Type 2 | H216: Total | I216: Type 1 | J216: Type 2
A217: Academic | B217: 1874.970873 | C217: 988.305349 | D217: 1489.23802 | E217: 2001 | F217: 1055 | G217: 1589 | H217: 126.029127 | I217: 66.694651 | J217: 99.76198
A218: Vocational | B218: 1325.938353 | C218: 555.419331 | D218: 813.37237 | E218: 1415 | F218: 593 | G218: 868 | H218: 89.061647 | I218: 37.580669 | J218: 54.62763
A219: Basic Skills/Dev Ed | B219: 781.585779 | C219: 423.2529 | D219: 479.452851 | E219: 834 | F219: 452 | G219: 512 | H219: 52.414221 | I219: 28.7471 | J219: 32.547149
A220: Total | B220: 3982.495005 | C220: 1966.97758 | D220: 2782.063241 | E220: 4250.441168 | F220: 2100 | G220: 2969 | H220: 267.504995 | I220: 133.02242 | J220: 186.936759
B223: Fall 2016 FTEs | E223: Fall 2026 FTE Projections | H223: FTE Growth (Fall)
A224: South Puget Sound | B224: Total | C224: Type 1 | D224: Type 2 | E224: Total | F224: Type 1 | G224: Type 2 | H224: Total | I224: Type 1 | J224: Type 2
A225: Academic | B225: 2604.157322 | C225: 1662.958247 | D225: 2177.691085 | E225: 2883 | F225: 1841 | G225: 2411 | H225: 278.842678 | I225: 178.041753 | J225: 233.308915
A226: Vocational | B226: 955.925633 | C226: 549.89271 | D226: 712.559225 | E226: 1058 | F226: 609 | G226: 789 | H226: 102.074367 | I226: 59.10729 | J226: 76.440775
A227: Basic Skills/Dev Ed | B227: 589.612618 | C227: 323.632915 | D227: 377.219524 | E227: 653 | F227: 358 | G227: 418 | H227: 63.387382 | I227: 34.367085 | J227: 40.780476
A228: Total | B228: 4149.695573 | C228: 2536.483872 | D228: 3267.469834 | E228: 4593.263645 | F228: 2808 | G228: 3618 | H228: 444.304427 | I228: 271.516128 | J228: 350.530166
B231: Fall 2016 FTEs | E231: Fall 2026 FTE Projections | H231: FTE Growth (Fall)
A232: Spokane | B232: Total | C232: Type 1 | D232: Type 2 | E232: Total | F232: Type 1 | G232: Type 2 | H232: Total | I232: Type 1 | J232: Type 2
A233: Academic | B233: 2360.442 | C233: 1247.929 | D233: 1949.544 | E233: 2491 | F233: 1317 | G233: 2057 | H233: 130.558 | I233: 69.071 | J233: 107.456
A234: Vocational | B234: 3528.233 | C234: 2575.076 | D234: 2827.141 | E234: 3723 | F234: 2717 | G234: 2983 | H234: 194.767 | I234: 141.924 | J234: 155.859
A235: Basic Skills/Dev Ed | B235: 2437.704 | C235: 1529.264 | D235: 1570.223 | E235: 2572 | F235: 1614 | G235: 1657 | H235: 134.296 | I235: 84.736 | J235: 86.777
A236: Total | B236: 8326.379 | C236: 5352.269 | D236: 6346.908 | E236: 8785.627338 | F236: 5648 | G236: 6697 | H236: 459.621 | I236: 295.731 | J236: 350.092
B239: Fall 2016 FTEs | E239: Fall 2026 FTE Projections | H239: FTE Growth (Fall)
A240: Spokane Falls | B240: Total | C240: Type 1 | D240: Type 2 | E240: Total | F240: Type 1 | G240: Type 2 | H240: Total | I240: Type 1 | J240: Type 2
A241: Academic | B241: 3450.35 | C241: 2570.068 | D241: 3334.906 | E241: 3576 | F241: 2664 | G241: 3456 | H241: 125.65 | I241: 93.932 | J241: 121.094
A242: Vocational | B242: 1022.768 | C242: 695.274 | D242: 1003.454 | E242: 1060 | F242: 721 | G242: 1040 | H242: 37.232 | I242: 25.726 | J242: 36.546
A243: Basic Skills/Dev Ed | B243: 333.006 | C243: 289.383 | D243: 326.679 | E243: 345 | F243: 300 | G243: 338 | H243: 11.994 | I243: 10.617 | J243: 11.321
A244: Total | B244: 4806.124 | C244: 3554.725 | D244: 4665.039 | E244: 4981.209713 | F244: 3685 | G244: 4834 | H244: 174.876 | I244: 130.275 | J244: 168.961
B247: Fall 2016 FTEs | E247: Fall 2026 FTE Projections | H247: FTE Growth (Fall)
A248: Tacoma | B248: Total | C248: Type 1 | D248: Type 2 | E248: Total | F248: Type 1 | G248: Type 2 | H248: Total | I248: Type 1 | J248: Type 2
A249: Academic | B249: 3617.94 | C249: 2665.119 | D249: 3287.134 | E249: 3783 | F249: 2787 | G249: 3437 | H249: 165.06 | I249: 121.881 | J249: 149.866
A250: Vocational | B250: 928.37 | C250: 570.568 | D250: 813.711 | E250: 971 | F250: 597 | G250: 851 | H250: 42.63 | I250: 26.432 | J250: 37.289
A251: Basic Skills/Dev Ed | B251: 980.016 | C251: 795.487 | D251: 815.134 | E251: 1025 | F251: 832 | G251: 853 | H251: 44.984 | I251: 36.513 | J251: 37.866
A252: Total | B252: 5526.326 | C252: 4031.174 | D252: 4915.979 | E252: 5778.476219 | F252: 4216 | G252: 5141 | H252: 252.674 | I252: 184.826 | J252: 225.021
B255: Fall 2016 FTEs | E255: Fall 2026 FTE Projections | H255: FTE Growth (Fall)
A256: Walla Walla | B256: Total | C256: Type 1 | D256: Type 2 | E256: Total | F256: Type 1 | G256: Type 2 | H256: Total | I256: Type 1 | J256: Type 2
A257: Academic | B257: 1215.845134 | C257: 803.559039 | D257: 1042.73868 | E257: 1273 | F257: 841 | G257: 1092 | H257: 57.154866 | I257: 37.440961 | J257: 49.26132
A258: Vocational | B258: 1201.578306 | C258: 847.732363 | D258: 948.505564 | E258: 1258 | F258: 888 | G258: 993 | H258: 56.421694 | I258: 40.267637 | J258: 44.494436
A259: Basic Skills/Dev Ed | B259: 531.412228 | C259: 350.525911 | D259: 384.292463 | E259: 556 | F259: 367 | G259: 402 | H259: 24.587772 | I259: 16.474089 | J259: 17.707537
A260: Total | B260: 2948.835668 | C260: 2001.817313 | D260: 2375.536707 | E260: 3086.808938 | F260: 2096 | G260: 2487 | H260: 138.164332 | I260: 94.182687 | J260: 111.463293
B263: Fall 2016 FTEs | E263: Fall 2026 FTE Projections | H263: FTE Growth (Fall)
A264: Wenatchee Valley | B264: Total | C264: Type 1 | D264: Type 2 | E264: Total | F264: Type 1 | G264: Type 2 | H264: Total | I264: Type 1 | J264: Type 2
... 27 more rows

Sheet College Name Lookup
A1: COL | B1: TITLE | D1: COL | E1: TITLE | F1: TYPE
A2: 010 | B2: Peninsula | D2: 280 | E2: Bates | F2: Technical College
A3: 020 | B3: Grays Harbor | D3: 080 | E3: Bellevue | F3: Community College
A4: 030 | B4: Olympic | D4: 250 | E4: Bellingham | F4: Technical College
A5: 040 | B5: Skagit Valley | D5: 180 | E5: Big Bend | F5: Community College
A6: 050 | B6: Everett | D6: 300 | E6: Cascadia | F6: Community College
A7: 062 | B7: Seattle Central | D7: 121 | E7: Centralia | F7: Community College
A8: 063 | B8: Seattle North | D8: 140 | E8: Clark | F8: Community College
A9: 064 | B9: Seattle South | D9: 290 | E9: Clover Park | F9: Technical College
A10: 065 | B10: Seattle Voc Institute | D10: 190 | E10: Columbia Basin | F10: Community College
A11: 070 | B11: Shoreline | D11: 230 | E11: Edmonds | F11: Community College
A12: 080 | B12: Bellevue | D12: 050 | E12: Everett | F12: Community College
A13: 090 | B13: Highline | D13: 020 | E13: Grays Harbor | F13: Community College
A14: 100 | B14: Green River | D14: 100 | E14: Green River | F14: Community College
A15: 111 | B15: Pierce Fort Steilacoom | D15: 090 | E15: Highline | F15: Community College
A16: 112 | B16: Pierce Puyallup | D16: 260 | E16: Lake Washington | F16: Technical College
A17: 121 | B17: Centralia | D17: 130 | E17: Lower Columbia | F17: Community College
A18: 130 | B18: Lower Columbia | D18: 030 | E18: Olympic | F18: Community College
A19: 140 | B19: Clark | D19: 010 | E19: Peninsula | F19: Community College
A20: 150 | B20: Wenatchee Valley | D20: 111 | E20: Pierce Fort Steilacoom | F20: Community College
A21: 160 | B21: Yakima Valley | D21: 112 | E21: Pierce Puyallup | F21: Community College
A22: 171 | B22: Spokane | D22: 270 | E22: Renton | F22: Technical College
A23: 172 | B23: Spokane Falls | D23: 062 | E23: Seattle Central | F23: Community College
A24: 180 | B24: Big Bend | D24: 063 | E24: Seattle North | F24: Community College
A25: 190 | B25: Columbia Basin | D25: 064 | E25: Seattle South | F25: Community College
A26: 200 | B26: Walla Walla | D26: 065 | E26: Seattle Voc Institute | F26: Technical College
A27: 210 | B27: Whatcom | D27: 070 | E27: Shoreline | F27: Community College
A28: 220 | B28: Tacoma | D28: 040 | E28: Skagit Valley | F28: Community College
A29: 230 | B29: Edmonds | D29: 240 | E29: South Puget Sound | F29: Community College
A30: 240 | B30: South Puget Sound | D30: 171 | E30: Spokane | F30: Community College
A31: 250 | B31: Bellingham | D31: 172 | E31: Spokane Falls | F31: Community College
A32: 260 | B32: Lake Washington | D32: 220 | E32: Tacoma | F32: Community College
A33: 270 | B33: Renton | D33: 200 | E33: Walla Walla | F33: Community College
A34: 280 | B34: Bates | D34: 150 | E34: Wenatchee Valley | F34: Community College
A35: 290 | B35: Clover Park | D35: 210 | E35: Whatcom | F35: Community College
A36: 300 | B36: Cascadia | D36: 160 | E36: Yakima Valley | F36: Community College
